account_party,address,code,date,document_number,expense_code_name,expense_code_name_short,id,party_cell,party_cell_code,party_cell_geoobject,purpose,source_bank_account_number,source_bank_account_type,sum,target_legal_personality,target_legal_personality_code,target_type
ГРОМАДЯНСЬКА ПОЗИЦІЯ,"Київ, вулиця Госпітальна, 12Г",70,2016-12-30,52640913,Банківські послуги,Інші витрати,138933,Тернопільська обласна організація,37016189,Тернопільська область,Комісія за розрахункове обслуговування рахунку,26002300597395,current,10.00,"АТ ""Ощадбанк""",00032129,юридична особа
ГРОМАДЯНСЬКА ПОЗИЦІЯ,"Київ, вулиця Миколи Лєскова, 9",70,2016-12-29,Ьп,Банківські послуги,Інші витрати,138841,Львівська обласна організація,37277596,Львівська область,Комісія за користування пакетом,26005314012,current,100.00,"АТ ""Райффайзен банк Аваль""",14305909,юридична особа
ГРОМАДЯНСЬКА ПОЗИЦІЯ,"Київ, вулиця Миколи Лєскова, 9",70,2016-12-29,Ьп,Банківські послуги,Інші витрати,138840,Львівська обласна організація,37277596,Львівська область,Комісія за надання виписки,26005314012,current,50.00,"АТ ""Райффайзен банк Аваль""",14305909,юридична особа
ГРОМАДЯНСЬКА ПОЗИЦІЯ,"Київ, вулиця Антоновича, 127",70,2016-12-29,26004020050550,Банківські послуги,Інші витрати,138802,Центральний офіс,33492420,Україна,Оплата послуг,26009000000569,current,18.73,"АТ ""Укрексімбанк""",00032112,юридична особа
ГРОМАДЯНСЬКА ПОЗИЦІЯ,"Київ, вулиця Антоновича, 127",70,2016-12-29,26004020050550,Банківські послуги,Інші витрати,138801,Центральний офіс,33492420,Україна,Послуги банку,26009000000569,current,96.00,"АТ ""Укрексімбанк""",00032112,юридична особа
ГРОМАДЯНСЬКА ПОЗИЦІЯ,Київ,60,2016-12-29,26004020050550,Інші податки,Податкові платежі,138800,Центральний офіс,33492420,Україна,Податки до держбюджету,26009000000569,current,1230.00,ДПІ у Шевченківському районі у м. Києві,38728711,юридична особа
ГРОМАДЯНСЬКА ПОЗИЦІЯ,"Київ, вулиця Академіка Туполєва, 28А",63,2016-12-29,26004020050550,Податок на доходи,Податкові платежі,138799,Центральний офіс,33492420,Україна,Податки до держбюджету,26009000000569,current,900.00,УДКСУ у Шевченківському районі м. Києва,37995466,юридична особа
ГРОМАДЯНСЬКА ПОЗИЦІЯ,"Київ, вулиця Академіка Туполєва, 28А",63,2016-12-29,26004020050550,Податок на доходи,Податкові платежі,138798,Центральний офіс,33492420,Україна,Податки до держбюджету,26009000000569,current,68.00,УДКСУ у Шевченківському районі м. Києва,37995466,юридична особа
ГРОМАДЯНСЬКА ПОЗИЦІЯ,"Київ, вулиця Магнітогорська, 1",76,2016-12-29,26004020050550,Послуги зв’язку,Послуги зв’язку,138797,Центральний офіс,33492420,Україна,Оплата послуг,26009000000569,current,174.60,"ТОВ ""Воля-кабель""",30777913,юридична особа
ГРОМАДЯНСЬКА ПОЗИЦІЯ,"Київ, вулиця Антоновича, 127",70,2016-12-29,26004020050550_64,Банківські послуги,Інші витрати,138796,Центральний офіс,33492420,Україна,Послуги банку,26009000000569,current,2.50,"АТ ""Укрексімбанк""",00032112,юридична особа
ГРОМАДЯНСЬКА ПОЗИЦІЯ,"Київ, вулиця Антоновича, 127",70,2016-12-29,26004020050550_63,Банківські послуги,Інші витрати,138795,Центральний офіс,33492420,Україна,Послуги банку,26009000000569,current,2.50,"АТ ""Укрексімбанк""",00032112,юридична особа
ГРОМАДЯНСЬКА ПОЗИЦІЯ,"Київ, вулиця Антоновича, 127",70,2016-12-29,26004020050550_62,Банківські послуги,Інші витрати,138794,Центральний офіс,33492420,Україна,Послуги банку,26009000000569,current,2.50,"АТ ""Укрексімбанк""",00032112,юридична особа
ГРОМАДЯНСЬКА ПОЗИЦІЯ,"Київ, вулиця Антоновича, 127",70,2016-12-29,26004020050550_61,Банківські послуги,Інші витрати,138793,Центральний офіс,33492420,Україна,Послуги банку,26009000000569,current,2.50,"АТ ""Укрексімбанк""",00032112,юридична особа
ГРОМАДЯНСЬКА ПОЗИЦІЯ,"Київ, вулиця Антоновича, 127",70,2016-12-29,26004020050550_60,Банківські послуги,Інші витрати,138792,Центральний офіс,33492420,Україна,Послуги банку,26009000000569,current,2.50,"АТ ""Укрексімбанк""",00032112,юридична особа
ГРОМАДЯНСЬКА ПОЗИЦІЯ,"Київ, вулиця Антоновича, 127",70,2016-12-29,26004020050550_59,Банківські послуги,Інші витрати,138791,Центральний офіс,33492420,Україна,Послуги банку,26009000000569,current,2.50,"АТ ""Укрексімбанк""",00032112,юридична особа
ГРОМАДЯНСЬКА ПОЗИЦІЯ,"Київ, вулиця Антоновича, 127",70,2016-12-29,26004020050550,Банківські послуги,Інші витрати,138790,Центральний офіс,33492420,Україна,Послуги банку,26009000000569,current,2.50,"АТ ""Укрексімбанк""",00032112,юридична особа
ГРОМАДЯНСЬКА ПОЗИЦІЯ,Київ,48,2016-12-29,26004020050550,Публікування матеріалів у мережі Інтернет,Реклама в інтернеті,138789,Центральний офіс,33492420,Україна,Оплата послуг,26009000000569,current,1200.00,"ТОВ ""ГІГАЦЕНТР""",37956851,юридична особа
ГРОМАДЯНСЬКА ПОЗИЦІЯ,Київ,48,2016-12-29,26004020050550,Публікування матеріалів у мережі Інтернет,Реклама в інтернеті,138788,Центральний офіс,33492420,Україна,Оплата послуг,26009000000569,current,800.00,"ТОВ ""ГІГАТРАНС""",34603204,юридична особа
ГРОМАДЯНСЬКА ПОЗИЦІЯ,,84,2016-12-29,33,"Заробітна плата, премії","Заробітна плата, лікарняні, вагітності, відрядження, компенсації",138579,Центральний офіс,33492420,Україна,ЗП за грудеь 2016р.,26009000000569,current,2415.00,Царьов Ігор Анатолійович,,фізична особа
ГРОМАДЯНСЬКА ПОЗИЦІЯ,,84,2016-12-29,33,"Заробітна плата, премії","Заробітна плата, лікарняні, вагітності, відрядження, компенсації",138578,Центральний офіс,33492420,Україна,ЗП за грудеь 2016р.,26009000000569,current,603.75,Комарова Ганна Георгіївна,,фізична особа
ГРОМАДЯНСЬКА ПОЗИЦІЯ,,84,2016-12-29,33,"Заробітна плата, премії","Заробітна плата, лікарняні, вагітності, відрядження, компенсації",138577,Центральний офіс,33492420,Україна,ЗП за грудеь 2016р.,26009000000569,current,727.77,Павлик Зоя Борисівна,,фізична особа
ГРОМАДЯНСЬКА ПОЗИЦІЯ,"Київ, вулиця Антоновича, 127",70,2016-12-23,26004020050550,Банківські послуги,Інші витрати,138787,Центральний офіс,33492420,Україна,Послуги банку,26009000000569,current,2.50,"АТ ""Укрексімбанк""",00032112,юридична особа
ГРОМАДЯНСЬКА ПОЗИЦІЯ,"Чернігівська область, Чернігів, вулиця Мстиславська, 17",79,2016-12-23,26004020050550,"Оренда будинків і приміщень та експлуатаційні витрати (прибирання, страхування орендованих будинків, охорона, сигналізація, ремонт, вивіз сміття, тощо)",Оренда нерухомості,138786,Центральний офіс,33492420,Україна,Оренда приміщення,26009000000569,current,2733.85,Фонд комунального майна Чернігівської міської ради,14227121,юридична особа
ГРОМАДЯНСЬКА ПОЗИЦІЯ,"Тернопільська область, Тернопіль",79,2016-12-16,82,"Оренда будинків і приміщень та експлуатаційні витрати (прибирання, страхування орендованих будинків, охорона, сигналізація, ремонт, вивіз сміття, тощо)",Оренда нерухомості,138932,Тернопільська обласна організація,37016189,Тернопільська область,Оплата за оренду офісного приміщення,26002300597395,current,1500.00,"ТОВ ""Торговий Дім ""Універсальний""",31080395,юридична особа
ГРОМАДЯНСЬКА ПОЗИЦІЯ,"Київ, вулиця Михайла Грушевського, 1Д",70,2016-12-15,1215L3VPQ Y,Банківські послуги,Інші витрати,138923,Дніпропетровська обласна організація,37006888,Дніпропетровська область,Комісія за дебетовий платіж,26005050226940,current,3.00,"ПАТ КБ ""Приватбанк""",14360570,юридична особа
ГРОМАДЯНСЬКА ПОЗИЦІЯ,"Київ, вулиця Бастіонна, 6",61,2016-12-15,45 50 55,Військовий збір,Податкові платежі,138890,Івано-Франківська обласна організація,36733960,Івано-Франківська область,Військовий збір,26000052516833,current,69.75,ГУ ДКСУ,20055032,державний бюджет
ГРОМАДЯНСЬКА ПОЗИЦІЯ,"Івано-Франківська область, Івано-Франківськ, вулиця Михайла Грушевського, 32",63,2016-12-15,56,Податок на доходи,Податкові платежі,138887,Івано-Франківська обласна організація,36733960,Івано-Франківська область,ПДФО з зарплати за Жовтень-Грудень,26000052516833,current,464.94,УДКСУ у м. Івано-Франківську,37952250,юридична особа
ГРОМАДЯНСЬКА ПОЗИЦІЯ,"Івано-Франківська область, Івано-Франківськ",62,2016-12-15,53,Сплата ЄСВ,Податкові платежі,138884,Івано-Франківська обласна організація,36733960,Івано-Франківська область,ЄСВ з зарплати за жовтень-грудень,26000052516833,current,1023.00,ДПІ в м. Івано-Франківську ГУ ДФС в Івано-Франківській області,39508514,юридична особа
ГРОМАДЯНСЬКА ПОЗИЦІЯ,,84,2016-12-15,54,"Заробітна плата, премії","Заробітна плата, лікарняні, вагітності, відрядження, компенсації",138850,Івано-Франківська обласна організація,36733960,Івано-Франківська область,Заробітна плата,26000052516833,current,1371.77,Ревтюк Христина Василівна,,фізична особа
ГРОМАДЯНСЬКА ПОЗИЦІЯ,"Київ, вулиця Антоновича, 127",70,2016-12-12,26004020050550,Банківські послуги,Інші витрати,138785,Центральний офіс,33492420,Україна,Послуги банку,26009000000569,current,30.00,"АТ ""Укрексімбанк""",00032112,юридична особа
ГРОМАДЯНСЬКА ПОЗИЦІЯ,"Київ, вулиця Михайла Грушевського, 1Д",70,2016-12-02,,Банківські послуги,Інші витрати,138881,Івано-Франківська обласна організація,36733960,Івано-Франківська область,Комісія за обслуговування рахунку,26000052516833,current,354.44,"ПАТ КБ ""Приватбанк""",14360570,юридична особа
ГРОМАДЯНСЬКА ПОЗИЦІЯ,"Київ, вулиця Госпітальна, 12Г",70,2016-11-30,51254801,Банківські послуги,Інші витрати,138931,Тернопільська обласна організація,37016189,Тернопільська область,Комісія за розрахункове обслуговування рахунку,26002300597395,current,20.00,"АТ ""Ощадбанк""",00032129,юридична особа
ГРОМАДЯНСЬКА ПОЗИЦІЯ,"Київ, вулиця Антоновича, 127",70,2016-11-30,26004020050550,Банківські послуги,Інші витрати,138784,Центральний офіс,33492420,Україна,Послуги банку,26009000000569,current,96.00,"АТ ""Укрексімбанк""",00032112,юридична особа
ГРОМАДЯНСЬКА ПОЗИЦІЯ,"Київ, вулиця Миколи Лєскова, 9",70,2016-11-29,Ьп,Банківські послуги,Інші витрати,138839,Львівська обласна організація,37277596,Львівська область,Комісія за користування пакетом,26005314012,current,100.00,"АТ ""Райффайзен банк Аваль""",14305909,юридична особа
ГРОМАДЯНСЬКА ПОЗИЦІЯ,"Київ, вулиця Миколи Лєскова, 9",70,2016-11-29,Ьп,Банківські послуги,Інші витрати,138838,Львівська обласна організація,37277596,Львівська область,Комісія за надання виписки,26005314012,current,50.00,"АТ ""Райффайзен банк Аваль""",14305909,юридична особа
ГРОМАДЯНСЬКА ПОЗИЦІЯ,"Київ, вулиця Антоновича, 127",70,2016-11-28,26004020050550,Банківські послуги,Інші витрати,138783,Центральний офіс,33492420,Україна,Послуги банку,26009000000569,current,18.73,"АТ ""Укрексімбанк""",00032112,юридична особа
ГРОМАДЯНСЬКА ПОЗИЦІЯ,Київ,60,2016-11-28,26004020050550,Інші податки,Податкові платежі,138782,Центральний офіс,33492420,Україна,Податки до держбюджету,26009000000569,current,1230.00,ДПІ у Шевченківському районі у м. Києві,38728711,юридична особа
ГРОМАДЯНСЬКА ПОЗИЦІЯ,"Київ, вулиця Академіка Туполєва, 28А",63,2016-11-28,26004020050550,Податок на доходи,Податкові платежі,138781,Центральний офіс,33492420,Україна,Податки до держбюджету,26009000000569,current,900.00,УДКСУ у Шевченківському районі м. Києва,37995466,юридична особа
ГРОМАДЯНСЬКА ПОЗИЦІЯ,"Київ, вулиця Академіка Туполєва, 28А",63,2016-11-28,26004020050550,Податок на доходи,Податкові платежі,138780,Центральний офіс,33492420,Україна,Податки до держбюджету,26009000000569,current,68.00,УДКСУ у Шевченківському районі м. Києва,37995466,юридична особа
ГРОМАДЯНСЬКА ПОЗИЦІЯ,"Київ, вулиця Магнітогорська, 1",76,2016-11-28,26004020050550,Послуги зв’язку,Послуги зв’язку,138779,Центральний офіс,33492420,Україна,Оплата послуг,26009000000569,current,174.60,"ТОВ ""Воля-кабель""",30777913,юридична особа
ГРОМАДЯНСЬКА ПОЗИЦІЯ,"Київ, вулиця Антоновича, 127",70,2016-11-28,26004020050550_75,Банківські послуги,Інші витрати,138778,Центральний офіс,33492420,Україна,Послуги банку,26009000000569,current,2.50,"АТ ""Укрексімбанк""",00032112,юридична особа
ГРОМАДЯНСЬКА ПОЗИЦІЯ,"Київ, вулиця Антоновича, 127",70,2016-11-28,26004020050550_58,Банківські послуги,Інші витрати,138777,Центральний офіс,33492420,Україна,Послуги банку,26009000000569,current,2.50,"АТ ""Укрексімбанк""",00032112,юридична особа
ГРОМАДЯНСЬКА ПОЗИЦІЯ,"Київ, вулиця Антоновича, 127",70,2016-11-28,26004020050550_57,Банківські послуги,Інші витрати,138776,Центральний офіс,33492420,Україна,Послуги банку,26009000000569,current,2.50,"АТ ""Укрексімбанк""",00032112,юридична особа
ГРОМАДЯНСЬКА ПОЗИЦІЯ,"Київ, вулиця Антоновича, 127",70,2016-11-28,26004020050550_56,Банківські послуги,Інші витрати,138775,Центральний офіс,33492420,Україна,Послуги банку,26009000000569,current,2.50,"АТ ""Укрексімбанк""",00032112,юридична особа
ГРОМАДЯНСЬКА ПОЗИЦІЯ,"Київ, вулиця Антоновича, 127",70,2016-11-28,26004020050550_55,Банківські послуги,Інші витрати,138774,Центральний офіс,33492420,Україна,Послуги банку,26009000000569,current,2.50,"АТ ""Укрексімбанк""",00032112,юридична особа
ГРОМАДЯНСЬКА ПОЗИЦІЯ,"Київ, вулиця Антоновича, 127",70,2016-11-28,26004020050550_54,Банківські послуги,Інші витрати,138773,Центральний офіс,33492420,Україна,Послуги банку,26009000000569,current,2.50,"АТ ""Укрексімбанк""",00032112,юридична особа
ГРОМАДЯНСЬКА ПОЗИЦІЯ,"Київ, вулиця Антоновича, 127",70,2016-11-28,26004020050550_53,Банківські послуги,Інші витрати,138772,Центральний офіс,33492420,Україна,Послуги банку,26009000000569,current,2.50,"АТ ""Укрексімбанк""",00032112,юридична особа
ГРОМАДЯНСЬКА ПОЗИЦІЯ,"Київ, вулиця Антоновича, 127",70,2016-11-28,26004020050550,Банківські послуги,Інші витрати,138771,Центральний офіс,33492420,Україна,Послуги банку,26009000000569,current,2.50,"АТ ""Укрексімбанк""",00032112,юридична особа
ГРОМАДЯНСЬКА ПОЗИЦІЯ,Київ,48,2016-11-28,26004020050550,Публікування матеріалів у мережі Інтернет,Реклама в інтернеті,138770,Центральний офіс,33492420,Україна,Оплата послуг,26009000000569,current,800.00,"ТОВ ""ГІГАТРАНС""",34603204,юридична особа
ГРОМАДЯНСЬКА ПОЗИЦІЯ,Київ,48,2016-11-28,26004020050550,Публікування матеріалів у мережі Інтернет,Реклама в інтернеті,138769,Центральний офіс,33492420,Україна,Оплата послуг,26009000000569,current,1200.00,"ТОВ ""ГІГАЦЕНТР""",37956851,юридична особа
ГРОМАДЯНСЬКА ПОЗИЦІЯ,,79,2016-11-28,36,"Оренда будинків і приміщень та експлуатаційні витрати (прибирання, страхування орендованих будинків, охорона, сигналізація, ремонт, вивіз сміття, тощо)",Оренда нерухомості,138576,Центральний офіс,33492420,Україна,Оренда приміщення,26009000000569,current,12000.00,Михайличенко Алла Олексіївна,,фізична особа
ГРОМАДЯНСЬКА ПОЗИЦІЯ,,84,2016-11-28,32,"Заробітна плата, премії","Заробітна плата, лікарняні, вагітності, відрядження, компенсації",138575,Центральний офіс,33492420,Україна,ЗП за листопад 2016р.,26009000000569,current,2415.00,Царьов Ігор Анатолійович,,фізична особа
ГРОМАДЯНСЬКА ПОЗИЦІЯ,,84,2016-11-28,32,"Заробітна плата, премії","Заробітна плата, лікарняні, вагітності, відрядження, компенсації",138574,Центральний офіс,33492420,Україна,ЗП за листопад 2016р.,26009000000569,current,603.75,Комарова Ганна Георгіївна,,фізична особа
ГРОМАДЯНСЬКА ПОЗИЦІЯ,,84,2016-11-28,32,"Заробітна плата, премії","Заробітна плата, лікарняні, вагітності, відрядження, компенсації",138573,Центральний офіс,33492420,Україна,ЗП за листопад 2016р.,26009000000569,current,727.77,Павлик Зоя Борисівна,,фізична особа
ГРОМАДЯНСЬКА ПОЗИЦІЯ,"Київ, вулиця Антоновича, 127",70,2016-11-25,26004020050550,Банківські послуги,Інші витрати,138768,Центральний офіс,33492420,Україна,Послуги банку,26009000000569,current,2.50,"АТ ""Укрексімбанк""",00032112,юридична особа
ГРОМАДЯНСЬКА ПОЗИЦІЯ,Київ,48,2016-11-25,26004020050550,Публікування матеріалів у мережі Інтернет,Реклама в інтернеті,138767,Центральний офіс,33492420,Україна,Оплата послуг,26009000000569,current,85.58,"ТОВ ""ГІГАЦЕНТР""",37956851,юридична особа
ГРОМАДЯНСЬКА ПОЗИЦІЯ,"Київ, вулиця Антоновича, 127",70,2016-11-21,26004020050550,Банківські послуги,Інші витрати,138766,Центральний офіс,33492420,Україна,Послуги банку,26009000000569,current,2.50,"АТ ""Укрексімбанк""",00032112,юридична особа
ГРОМАДЯНСЬКА ПОЗИЦІЯ,Київ,48,2016-11-21,26004020050550,Публікування матеріалів у мережі Інтернет,Реклама в інтернеті,138765,Центральний офіс,33492420,Україна,Оплата послуг,26009000000569,current,879.87,"ТОВ ""ГІГАЦЕНТР""",37956851,юридична особа
ГРОМАДЯНСЬКА ПОЗИЦІЯ,"Львівська область, Мостиський район, Мостиська, вулиця Михайла Грушевського",59,2016-11-16,Ьп,Грошова застава,Грошова застава,138837,Львівська обласна організація,37277596,Львівська область,застава на висування кандидата на,26005314012,current,1012.00,Мостиська МВК Мостиського району Львівської області,34102793,юридична особа
ГРОМАДЯНСЬКА ПОЗИЦІЯ,"Львівська область, Мостиський район, Судова Вишня, площа Івана Франка",59,2016-11-15,Ьп,Грошова застава,Грошова застава,138836,Львівська обласна організація,37277596,Львівська область,застава на висування кандидата на,26005314012,current,515.00,Судововишнянська МВК Мостиського району Львівської області,34102945,юридична особа
ГРОМАДЯНСЬКА ПОЗИЦІЯ,"Тернопільська область, Тернопіль",59,2016-11-14,81,Грошова застава,Грошова застава,138930,Тернопільська обласна організація,37016189,Тернопільська область,"грошова застава Борщівської районної організації ""Громадянська позиція"" за кандидатів в депутати до",26002300597395,current,804.00,Борщівська МВК Борщівського району Тернопільської області,34035350,юридична особа
ГРОМАДЯНСЬКА ПОЗИЦІЯ,"Київ, вулиця Бастіонна, 6",61,2016-11-11,45 50 55,Військовий збір,Податкові платежі,138889,Івано-Франківська обласна організація,36733960,Івано-Франківська область,Військовий збір,26000052516833,current,69.75,ГУ ДКСУ,20055032,державний бюджет
ГРОМАДЯНСЬКА ПОЗИЦІЯ,"Івано-Франківська область, Івано-Франківськ, вулиця Михайла Грушевського, 32",63,2016-11-11,49,Податок на доходи,Податкові платежі,138886,Івано-Франківська обласна організація,36733960,Івано-Франківська область,ПДФО з зарплати за Жовтень-Грудень,26000052516833,current,464.94,УДКСУ у м. Івано-Франківську,37952250,юридична особа
ГРОМАДЯНСЬКА ПОЗИЦІЯ,"Івано-Франківська область, Івано-Франківськ",62,2016-11-11,48,Сплата ЄСВ,Податкові платежі,138883,Івано-Франківська обласна організація,36733960,Івано-Франківська область,ЄСВ з зарплати за жовтень-грудень,26000052516833,current,1023.00,ДПІ в м. Івано-Франківську ГУ ДФС в Івано-Франківській області,39508514,юридична особа
ГРОМАДЯНСЬКА ПОЗИЦІЯ,"Київ, вулиця Михайла Грушевського, 1Д",70,2016-11-11,,Банківські послуги,Інші витрати,138880,Івано-Франківська обласна організація,36733960,Івано-Франківська область,Комісія за обслуговування рахунку,26000052516833,current,354.44,"ПАТ КБ ""Приватбанк""",14360570,юридична особа
ГРОМАДЯНСЬКА ПОЗИЦІЯ,,84,2016-11-11,52,"Заробітна плата, премії","Заробітна плата, лікарняні, вагітності, відрядження, компенсації",138849,Івано-Франківська обласна організація,36733960,Івано-Франківська область,Заробітна плата,26000052516833,current,1371.71,Ревтюк Христина Василівна,,фізична особа
ГРОМАДЯНСЬКА ПОЗИЦІЯ,"Тернопільська область, Тернопіль",79,2016-11-08,80,"Оренда будинків і приміщень та експлуатаційні витрати (прибирання, страхування орендованих будинків, охорона, сигналізація, ремонт, вивіз сміття, тощо)",Оренда нерухомості,138929,Тернопільська обласна організація,37016189,Тернопільська область,Оплата за оренду офісного приміщення,26002300597395,current,1500.00,"ТОВ ""Торговий Дім ""Універсальний""",31080395,юридична особа
ГРОМАДЯНСЬКА ПОЗИЦІЯ,"Київ, вулиця Антоновича, 127",70,2016-11-07,26004020050550,Банківські послуги,Інші витрати,138764,Центральний офіс,33492420,Україна,Послуги банку,26009000000569,current,30.00,"АТ ""Укрексімбанк""",00032112,юридична особа
ГРОМАДЯНСЬКА ПОЗИЦІЯ,"Київ, вулиця Михайла Грушевського, 1Д",70,2016-11-01,AS6av2m5e P,Банківські послуги,Інші витрати,138921,Дніпропетровська обласна організація,37006888,Дніпропетровська область,Комісія за обслуговування рахунку,26005050226940,current,100.00,"ПАТ КБ ""Приватбанк""",14360570,юридична особа
ГРОМАДЯНСЬКА ПОЗИЦІЯ,"Київ, вулиця Михайла Грушевського, 1Д",70,2016-11-01,,Банківські послуги,Інші витрати,138879,Івано-Франківська обласна організація,36733960,Івано-Франківська область,Комісія за обслуговування рахунку,26000052516833,current,354.44,"ПАТ КБ ""Приватбанк""",14360570,юридична особа
ГРОМАДЯНСЬКА ПОЗИЦІЯ,"Київ, вулиця Госпітальна, 12Г",70,2016-10-31,50021711,Банківські послуги,Інші витрати,138928,Тернопільська обласна організація,37016189,Тернопільська область,Комісія за розрахункове обслуговування рахунку,26002300597395,current,10.00,"АТ ""Ощадбанк""",00032129,юридична особа
ГРОМАДЯНСЬКА ПОЗИЦІЯ,"Чернігівська область, Чернігів, вулиця Мстиславська, 17",79,2016-10-31,26004020050550,"Оренда будинків і приміщень та експлуатаційні витрати (прибирання, страхування орендованих будинків, охорона, сигналізація, ремонт, вивіз сміття, тощо)",Оренда нерухомості,138763,Центральний офіс,33492420,Україна,Оренда приміщення,26009000000569,current,4164.75,Фонд комунального майна Чернігівської міської ради,14227121,юридична особа
ГРОМАДЯНСЬКА ПОЗИЦІЯ,"Київ, вулиця Антоновича, 127",70,2016-10-31,26004020050550,Банківські послуги,Інші витрати,138762,Центральний офіс,33492420,Україна,Послуги банку,26009000000569,current,18.73,"АТ ""Укрексімбанк""",00032112,юридична особа
ГРОМАДЯНСЬКА ПОЗИЦІЯ,Київ,60,2016-10-31,26004020050550,Інші податки,Податкові платежі,138761,Центральний офіс,33492420,Україна,Податки до держбюджету,26009000000569,current,1230.00,ДПІ у Шевченківському районі у м. Києві,38728711,юридична особа
ГРОМАДЯНСЬКА ПОЗИЦІЯ,"Київ, вулиця Академіка Туполєва, 28А",63,2016-10-31,26004020050550,Податок на доходи,Податкові платежі,138760,Центральний офіс,33492420,Україна,Податки до держбюджету,26009000000569,current,900.00,УДКСУ у Шевченківському районі м. Києва,37995466,юридична особа
ГРОМАДЯНСЬКА ПОЗИЦІЯ,"Київ, вулиця Академіка Туполєва, 28А",63,2016-10-31,26004020050550,Податок на доходи,Податкові платежі,138759,Центральний офіс,33492420,Україна,Податки до держбюджету,26009000000569,current,68.00,УДКСУ у Шевченківському районі м. Києва,37995466,юридична особа
ГРОМАДЯНСЬКА ПОЗИЦІЯ,"Київ, вулиця Магнітогорська, 1",76,2016-10-31,26004020050550,Послуги зв’язку,Послуги зв’язку,138758,Центральний офіс,33492420,Україна,Оплата послуг,26009000000569,current,174.60,"ТОВ ""Воля-кабель""",30777913,юридична особа
ГРОМАДЯНСЬКА ПОЗИЦІЯ,"Київ, вулиця Антоновича, 127",70,2016-10-31,26004020050550,Банківські послуги,Інші витрати,138757,Центральний офіс,33492420,Україна,Послуги банку,26009000000569,current,96.00,"АТ ""Укрексімбанк""",00032112,юридична особа
ГРОМАДЯНСЬКА ПОЗИЦІЯ,"Київ, вулиця Антоновича, 127",70,2016-10-31,26004020050550_52,Банківські послуги,Інші витрати,138756,Центральний офіс,33492420,Україна,Послуги банку,26009000000569,current,2.50,"АТ ""Укрексімбанк""",00032112,юридична особа
ГРОМАДЯНСЬКА ПОЗИЦІЯ,"Київ, вулиця Антоновича, 127",70,2016-10-31,26004020050550_51,Банківські послуги,Інші витрати,138755,Центральний офіс,33492420,Україна,Послуги банку,26009000000569,current,2.50,"АТ ""Укрексімбанк""",00032112,юридична особа
ГРОМАДЯНСЬКА ПОЗИЦІЯ,"Київ, вулиця Антоновича, 127",70,2016-10-31,26004020050550_50,Банківські послуги,Інші витрати,138754,Центральний офіс,33492420,Україна,Послуги банку,26009000000569,current,2.50,"АТ ""Укрексімбанк""",00032112,юридична особа
ГРОМАДЯНСЬКА ПОЗИЦІЯ,"Київ, вулиця Антоновича, 127",70,2016-10-31,26004020050550_49,Банківські послуги,Інші витрати,138753,Центральний офіс,33492420,Україна,Послуги банку,26009000000569,current,2.50,"АТ ""Укрексімбанк""",00032112,юридична особа
ГРОМАДЯНСЬКА ПОЗИЦІЯ,"Київ, вулиця Антоновича, 127",70,2016-10-31,26004020050550_48,Банківські послуги,Інші витрати,138752,Центральний офіс,33492420,Україна,Послуги банку,26009000000569,current,2.50,"АТ ""Укрексімбанк""",00032112,юридична особа
ГРОМАДЯНСЬКА ПОЗИЦІЯ,"Київ, вулиця Антоновича, 127",70,2016-10-31,26004020050550_47,Банківські послуги,Інші витрати,138751,Центральний офіс,33492420,Україна,Послуги банку,26009000000569,current,2.50,"АТ ""Укрексімбанк""",00032112,юридична особа
ГРОМАДЯНСЬКА ПОЗИЦІЯ,"Київ, вулиця Антоновича, 127",70,2016-10-31,26004020050550_46,Банківські послуги,Інші витрати,138750,Центральний офіс,33492420,Україна,Послуги банку,26009000000569,current,2.50,"АТ ""Укрексімбанк""",00032112,юридична особа
ГРОМАДЯНСЬКА ПОЗИЦІЯ,"Київ, вулиця Антоновича, 127",70,2016-10-31,26004020050550,Банківські послуги,Інші витрати,138749,Центральний офіс,33492420,Україна,Послуги банку,26009000000569,current,2.50,"АТ ""Укрексімбанк""",00032112,юридична особа
ГРОМАДЯНСЬКА ПОЗИЦІЯ,Київ,48,2016-10-31,26004020050550,Публікування матеріалів у мережі Інтернет,Реклама в інтернеті,138748,Центральний офіс,33492420,Україна,Оплата послуг,26009000000569,current,800.00,"ТОВ ""ГІГАТРАНС""",34603204,юридична особа
ГРОМАДЯНСЬКА ПОЗИЦІЯ,Київ,48,2016-10-31,26004020050550,Публікування матеріалів у мережі Інтернет,Реклама в інтернеті,138747,Центральний офіс,33492420,Україна,Оплата послуг,26009000000569,current,1200.00,"ТОВ ""ГІГАЦЕНТР""",37956851,юридична особа
ГРОМАДЯНСЬКА ПОЗИЦІЯ,,84,2016-10-31,22,"Заробітна плата, премії","Заробітна плата, лікарняні, вагітності, відрядження, компенсації",138572,Центральний офіс,33492420,Україна,ЗП за жовтень 2016р.,26009000000569,current,2415.00,Царьов Ігор Анатолійович,,фізична особа
ГРОМАДЯНСЬКА ПОЗИЦІЯ,,84,2016-10-31,22,"Заробітна плата, премії","Заробітна плата, лікарняні, вагітності, відрядження, компенсації",138571,Центральний офіс,33492420,Україна,ЗП за жовтень 2016р.,26009000000569,current,603.75,Комарова Ганна Георгіївна,,фізична особа
ГРОМАДЯНСЬКА ПОЗИЦІЯ,,84,2016-10-31,22,"Заробітна плата, премії","Заробітна плата, лікарняні, вагітності, відрядження, компенсації",138570,Центральний офіс,33492420,Україна,ЗП за жовтень 2016р.,26009000000569,current,727.77,Павлик Зоя Борисівна,,фізична особа
ГРОМАДЯНСЬКА ПОЗИЦІЯ,"Київ, вулиця Миколи Лєскова, 9",70,2016-10-28,Ьп,Банківські послуги,Інші витрати,138835,Львівська обласна організація,37277596,Львівська область,Комісія за користування пакетом,26005314012,current,100.00,"АТ ""Райффайзен банк Аваль""",14305909,юридична особа
ГРОМАДЯНСЬКА ПОЗИЦІЯ,"Київ, вулиця Миколи Лєскова, 9",70,2016-10-28,Ьп,Банківські послуги,Інші витрати,138834,Львівська обласна організація,37277596,Львівська область,Комісія за надання виписки,26005314012,current,50.00,"АТ ""Райффайзен банк Аваль""",14305909,юридична особа
ГРОМАДЯНСЬКА ПОЗИЦІЯ,"Київ, вулиця Антоновича, 127",70,2016-10-12,26004020050550,Банківські послуги,Інші витрати,138746,Центральний офіс,33492420,Україна,Послуги банку,26009000000569,current,30.00,"АТ ""Укрексімбанк""",00032112,юридична особа
ГРОМАДЯНСЬКА ПОЗИЦІЯ,"Київ, вулиця Бастіонна, 6",61,2016-10-10,45 50 55,Військовий збір,Податкові платежі,138888,Івано-Франківська обласна організація,36733960,Івано-Франківська область,Військовий збір,26000052516833,current,69.75,ГУ ДКСУ,20055032,державний бюджет
ГРОМАДЯНСЬКА ПОЗИЦІЯ,"Івано-Франківська область, Івано-Франківськ, вулиця Михайла Грушевського, 32",63,2016-10-10,44,Податок на доходи,Податкові платежі,138885,Івано-Франківська обласна організація,36733960,Івано-Франківська область,ПДФО з зарплати за Жовтень-Грудень,26000052516833,current,464.94,УДКСУ у м. Івано-Франківську,37952250,юридична особа
ГРОМАДЯНСЬКА ПОЗИЦІЯ,"Івано-Франківська область, Івано-Франківськ",62,2016-10-10,43,Сплата ЄСВ,Податкові платежі,138882,Івано-Франківська обласна організація,36733960,Івано-Франківська область,ЄСВ з зарплати за жовтень-грудень,26000052516833,current,1023.00,ДПІ в м. Івано-Франківську ГУ ДФС в Івано-Франківській області,39508514,юридична особа
ГРОМАДЯНСЬКА ПОЗИЦІЯ,"Київ, вулиця Михайла Грушевського, 1Д",70,2016-10-10,,Банківські послуги,Інші витрати,138878,Івано-Франківська обласна організація,36733960,Івано-Франківська область,Комісія за обслуговування рахунку,26000052516833,current,354.44,"ПАТ КБ ""Приватбанк""",14360570,юридична особа
ГРОМАДЯНСЬКА ПОЗИЦІЯ,,84,2016-10-10,46,"Заробітна плата, премії","Заробітна плата, лікарняні, вагітності, відрядження, компенсації",138848,Івано-Франківська обласна організація,36733960,Івано-Франківська область,Заробітна плата,26000052516833,current,1371.77,Ревтюк Христина Василівна,,фізична особа
ГРОМАДЯНСЬКА ПОЗИЦІЯ,"Тернопільська область, Тернопіль",79,2016-10-04,79,"Оренда будинків і приміщень та експлуатаційні витрати (прибирання, страхування орендованих будинків, охорона, сигналізація, ремонт, вивіз сміття, тощо)",Оренда нерухомості,138927,Тернопільська обласна організація,37016189,Тернопільська область,Оплата за оренду офісного приміщення,26002300597395,current,13500.00,"ТОВ ""Торговий Дім ""Універсальний""",31080395,юридична особа
ГРОМАДЯНСЬКА ПОЗИЦІЯ,"Київ, вулиця Михайла Грушевського, 1Д",70,2016-10-03,1003L05NE У,Банківські послуги,Інші витрати,138920,Дніпропетровська обласна організація,37006888,Дніпропетровська область,Комісія за дебетовий платіж,26005050226940,current,3.00,"ПАТ КБ ""Приватбанк""",14360570,юридична особа
ГРОМАДЯНСЬКА ПОЗИЦІЯ,"Київ, вулиця Михайла Грушевського, 1Д",70,2016-10-03,AS69u1qjzp,Банківські послуги,Інші витрати,138919,Дніпропетровська обласна організація,37006888,Дніпропетровська область,Комісія за обслуговування рахунку,26005050226940,current,100.00,"ПАТ КБ ""Приватбанк""",14360570,юридична особа
ГРОМАДЯНСЬКА ПОЗИЦІЯ,"Київ, вулиця Антоновича, 127",70,2016-10-03,10,Банківські послуги,Інші витрати,138918,Дніпропетровська обласна організація,37006888,Дніпропетровська область,Запит на уточнення реквізитів документа,26005050226940,current,2.00,"АТ ""Укрексімбанк""",00032112,юридична особа
ГРОМАДЯНСЬКА ПОЗИЦІЯ,"Київ, вулиця Михайла Грушевського, 1Д",70,2016-10-03,,Банківські послуги,Інші витрати,138877,Івано-Франківська обласна організація,36733960,Івано-Франківська область,Комісія за обслуговування рахунку,26000052516833,current,354.44,"ПАТ КБ ""Приватбанк""",14360570,юридична особа
ГРОМАДЯНСЬКА ПОЗИЦІЯ,"Київ, вулиця Михайла Грушевського, 1Д",70,2016-10-03,0920Л0МЛУ,Банківські послуги,Інші витрати,138814,Волинська обласна організація,37204512,Волинська область,"Комісія за обслуговування рахунку вересень 2016р. згідно договору банківського рахунку від 2015-08-03, без ПДВ",2600805509013,current,3.02,"ПАТ КБ ""Приватбанк""",14360570,юридична особа
ГРОМАДЯНСЬКА ПОЗИЦІЯ,"Київ, вулиця Антоновича, 127",70,2016-09-30,26009000000569_45,Банківські послуги,Інші витрати,138745,Центральний офіс,33492420,Україна,Послуги банку,26009000000569,current,96.00,"АТ ""Укрексімбанк""",00032112,юридична особа
ГРОМАДЯНСЬКА ПОЗИЦІЯ,"Чернігівська область, Чернігів, вулиця Мстиславська, 17",70,2016-09-30,26009000000569_44,Банківські послуги,Інші витрати,138744,Центральний офіс,33492420,Україна,Послуги банку,26009000000569,current,203.53,Фонд комунального майна Чернігівської міської ради,14227121,юридична особа
ГРОМАДЯНСЬКА ПОЗИЦІЯ,"Київ, вулиця Миколи Лєскова, 9",70,2016-09-29,Ьп,Банківські послуги,Інші витрати,138833,Львівська обласна організація,37277596,Львівська область,Комісія за користування пакетом,26005314012,current,100.00,"АТ ""Райффайзен банк Аваль""",14305909,юридична особа
ГРОМАДЯНСЬКА ПОЗИЦІЯ,"Київ, вулиця Миколи Лєскова, 9",70,2016-09-29,Ьп,Банківські послуги,Інші витрати,138832,Львівська обласна організація,37277596,Львівська область,Комісія за надання виписки,26005314012,current,50.00,"АТ ""Райффайзен банк Аваль""",14305909,юридична особа
ГРОМАДЯНСЬКА ПОЗИЦІЯ,"Київ, вулиця Антоновича, 127",70,2016-09-29,26009000000569_43,Банківські послуги,Інші витрати,138743,Центральний офіс,33492420,Україна,Послуги банку,26009000000569,current,2.50,"АТ ""Укрексімбанк""",00032112,юридична особа
ГРОМАДЯНСЬКА ПОЗИЦІЯ,"Київ, вулиця Магнітогорська, 1",76,2016-09-29,26009000000569_42,Послуги зв’язку,Послуги зв’язку,138742,Центральний офіс,33492420,Україна,Оплата послуг,26009000000569,current,2.50,"ТОВ ""Воля-кабель""",30777913,юридична особа
ГРОМАДЯНСЬКА ПОЗИЦІЯ,"Київ, вулиця Антоновича, 127",70,2016-09-29,26009000000569_41,Банківські послуги,Інші витрати,138741,Центральний офіс,33492420,Україна,Послуги банку,26009000000569,current,2.50,"АТ ""Укрексімбанк""",00032112,юридична особа
ГРОМАДЯНСЬКА ПОЗИЦІЯ,"Київ, вулиця Антоновича, 127",70,2016-09-29,26009000000569_40,Банківські послуги,Інші витрати,138740,Центральний офіс,33492420,Україна,Послуги банку,26009000000569,current,2.50,"АТ ""Укрексімбанк""",00032112,юридична особа
ГРОМАДЯНСЬКА ПОЗИЦІЯ,"Київ, вулиця Антоновича, 127",70,2016-09-29,26009000000569_39,Банківські послуги,Інші витрати,138739,Центральний офіс,33492420,Україна,Послуги банку,26009000000569,current,2.50,"АТ ""Укрексімбанк""",00032112,юридична особа
ГРОМАДЯНСЬКА ПОЗИЦІЯ,"Київ, вулиця Антоновича, 127",70,2016-09-29,26009000000569_74,Банківські послуги,Інші витрати,138738,Центральний офіс,33492420,Україна,Послуги банку,26009000000569,current,2.50,"АТ ""Укрексімбанк""",00032112,юридична особа
ГРОМАДЯНСЬКА ПОЗИЦІЯ,Київ,48,2016-09-29,26009000000569,Публікування матеріалів у мережі Інтернет,Реклама в інтернеті,138737,Центральний офіс,33492420,Україна,Оплата послуг,26009000000569,current,1200.00,"ТОВ ""ГІГАЦЕНТР""",37956851,юридична особа
ГРОМАДЯНСЬКА ПОЗИЦІЯ,Київ,48,2016-09-29,26009000000569,Публікування матеріалів у мережі Інтернет,Реклама в інтернеті,138736,Центральний офіс,33492420,Україна,Оплата послуг,26009000000569,current,800.00,"ТОВ ""ГІГАТРАНС""",34603204,юридична особа
ГРОМАДЯНСЬКА ПОЗИЦІЯ,"Київ, вулиця Антоновича, 127",70,2016-09-29,26009000000569,Банківські послуги,Інші витрати,138735,Центральний офіс,33492420,Україна,Послуги банку,26009000000569,current,18.70,"АТ ""Укрексімбанк""",00032112,юридична особа
ГРОМАДЯНСЬКА ПОЗИЦІЯ,"Київ, вулиця Магнітогорська, 1",76,2016-09-29,26009000000569,Послуги зв’язку,Послуги зв’язку,138734,Центральний офіс,33492420,Україна,Оплата послуг,26009000000569,current,174.33,"ТОВ ""Воля-кабель""",30777913,юридична особа
ГРОМАДЯНСЬКА ПОЗИЦІЯ,"Київ, вулиця Академіка Туполєва, 28А",63,2016-09-29,26009000000569,Податок на доходи,Податкові платежі,138733,Центральний офіс,33492420,Україна,Податки до держбюджету,26009000000569,current,900.00,УДКСУ у Шевченківському районі м. Києва,37995466,юридична особа
ГРОМАДЯНСЬКА ПОЗИЦІЯ,"Київ, вулиця Академіка Туполєва, 28А",63,2016-09-29,26009000000569,Податок на доходи,Податкові платежі,138732,Центральний офіс,33492420,Україна,Податки до держбюджету,26009000000569,current,68.00,УДКСУ у Шевченківському районі м. Києва,37995466,юридична особа
ГРОМАДЯНСЬКА ПОЗИЦІЯ,Київ,60,2016-09-29,26009000000569,Інші податки,Податкові платежі,138731,Центральний офіс,33492420,Україна,Податки до держбюджету,26009000000569,current,1230.00,ДПІ у Шевченківському районі у м. Києві,38728711,юридична особа
ГРОМАДЯНСЬКА ПОЗИЦІЯ,"Київ, вулиця Антоновича, 127",70,2016-09-29,26009000000569_73,Банківські послуги,Інші витрати,138730,Центральний офіс,33492420,Україна,Послуги банку,26009000000569,current,2.50,"АТ ""Укрексімбанк""",00032112,юридична особа
ГРОМАДЯНСЬКА ПОЗИЦІЯ,"Київ, вулиця Антоновича, 127",70,2016-09-29,26009000000569,Банківські послуги,Інші витрати,138729,Центральний офіс,33492420,Україна,Послуги банку,26009000000569,current,2.50,"АТ ""Укрексімбанк""",00032112,юридична особа
ГРОМАДЯНСЬКА ПОЗИЦІЯ,,84,2016-09-29,14,"Заробітна плата, премії","Заробітна плата, лікарняні, вагітності, відрядження, компенсації",138569,Центральний офіс,33492420,Україна,ЗП за вересень 2016р.,26009000000569,current,2415.00,Царьов Ігор Анатолійович,,фізична особа
ГРОМАДЯНСЬКА ПОЗИЦІЯ,,84,2016-09-29,14,"Заробітна плата, премії","Заробітна плата, лікарняні, вагітності, відрядження, компенсації",138568,Центральний офіс,33492420,Україна,ЗП за вересень 2016р.,26009000000569,current,603.75,Комарова Ганна Георгіївна,,фізична особа
ГРОМАДЯНСЬКА ПОЗИЦІЯ,,84,2016-09-29,14,"Заробітна плата, премії","Заробітна плата, лікарняні, вагітності, відрядження, компенсації",138567,Центральний офіс,33492420,Україна,ЗП за вересень 2016р.,26009000000569,current,727.77,Павлик Зоя Борисівна,,фізична особа
ГРОМАДЯНСЬКА ПОЗИЦІЯ,,79,2016-09-29,18,"Оренда будинків і приміщень та експлуатаційні витрати (прибирання, страхування орендованих будинків, охорона, сигналізація, ремонт, вивіз сміття, тощо)",Оренда нерухомості,138566,Центральний офіс,33492420,Україна,Оренда приміщення,26009000000569,current,5000.00,Михайличенко Алла Олексіївна,,фізична особа
ГРОМАДЯНСЬКА ПОЗИЦІЯ,"Київ, вулиця Антоновича, 127",70,2016-09-27,26009000000569,Банківські послуги,Інші витрати,138728,Центральний офіс,33492420,Україна,Послуги банку,26009000000569,current,518.03,"АТ ""Укрексімбанк""",00032112,юридична особа
ГРОМАДЯНСЬКА ПОЗИЦІЯ,"Київ, вулиця Антоновича, 127",70,2016-09-27,26009000000569,Банківські послуги,Інші витрати,138727,Центральний офіс,33492420,Україна,Послуги банку,26009000000569,current,50.00,"АТ ""Укрексімбанк""",00032112,юридична особа
ГРОМАДЯНСЬКА ПОЗИЦІЯ,"Київ, вулиця Антоновича, 127",70,2016-09-27,26009000000569,Банківські послуги,Інші витрати,138726,Центральний офіс,33492420,Україна,Послуги банку,26009000000569,current,2.50,"АТ ""Укрексімбанк""",00032112,юридична особа
ГРОМАДЯНСЬКА ПОЗИЦІЯ,"Київ, вулиця Михайла Грушевського, 1Д",70,2016-09-20,0920Ь0МЛУ,Банківські послуги,Інші витрати,138813,Волинська обласна організація,37204512,Волинська область,"Комісія за виконання платежів в національній валюті, згідно з відкритою офертою банку N б/н від 2015-08-03 та тарифів банку, без ПДВ.",2600805509013,current,3.00,"ПАТ КБ ""Приватбанк""",14360570,юридична особа
ГРОМАДЯНСЬКА ПОЗИЦІЯ,,58,2016-09-20,4,"Виготовлення друкованих матеріалів (плакатів, листівок, буклетів та інших агітаційних матеріалів)",Друкована агітація,138805,Волинська обласна організація,37204512,Волинська область,"Друк бюлетня ""Громадянська позиція""",2600805509013,current,1750.00,Глогусь Тетяна Іванівна,,фізична особа
ГРОМАДЯНСЬКА ПОЗИЦІЯ,"Київ, вулиця Михайла Грушевського, 1Д",70,2016-09-13,,Банківські послуги,Інші витрати,138876,Івано-Франківська обласна організація,36733960,Івано-Франківська область,Комісія за обслуговування рахунку,26000052516833,current,119.98,"ПАТ КБ ""Приватбанк""",14360570,юридична особа
ГРОМАДЯНСЬКА ПОЗИЦІЯ,"Івано-Франківська область, Івано-Франківськ, вулиця Михайла Грушевського, 32",63,2016-09-13,40,Податок на доходи,Податкові платежі,138865,Івано-Франківська обласна організація,36733960,Івано-Франківська область,ПДФО з зарплати за квітень-травень,26000052516833,current,702.90,УДКСУ у м. Івано-Франківську,37952250,юридична особа
ГРОМАДЯНСЬКА ПОЗИЦІЯ,"Івано-Франківська область, Івано-Франківськ",62,2016-09-13,,Сплата ЄСВ,Податкові платежі,138860,Івано-Франківська обласна організація,36733960,Івано-Франківська область,ЄСВ з зарплати за квітень-травень,26000052516833,current,1617.00,ДПІ в м. Івано-Франківську ГУ ДФС в Івано-Франківській області,39508514,юридична особа
ГРОМАДЯНСЬКА ПОЗИЦІЯ,"Київ, вулиця Михайла Грушевського, 1Д",70,2016-09-13,ЬШ9Ь0048,Банківські послуги,Інші витрати,138855,Івано-Франківська обласна організація,36733960,Івано-Франківська область,Комісія за ведення рахунку,26000052516833,current,458.66,"ПАТ КБ ""Приватбанк""",14360570,юридична особа
ГРОМАДЯНСЬКА ПОЗИЦІЯ,,84,2016-09-13,42,"Заробітна плата, премії","Заробітна плата, лікарняні, вагітності, відрядження, компенсації",138847,Івано-Франківська обласна організація,36733960,Івано-Франківська область,Заробітна плата,26000052516833,current,1371.71,Ревтюк Христина Василівна,,фізична особа
ГРОМАДЯНСЬКА ПОЗИЦІЯ,"Київ, вулиця Антоновича, 127",70,2016-09-13,26004020050550,Банківські послуги,Інші витрати,138724,Центральний офіс,33492420,Україна,Послуги банку,26009000000569,current,360.00,"АТ ""Укрексімбанк""",00032112,юридична особа
ГРОМАДЯНСЬКА ПОЗИЦІЯ,"Київ, вулиця Антоновича, 127",70,2016-09-13,26004020050550,Банківські послуги,Інші витрати,138723,Центральний офіс,33492420,Україна,Послуги банку,26009000000569,current,2.00,"АТ ""Укрексімбанк""",00032112,юридична особа
ГРОМАДЯНСЬКА ПОЗИЦІЯ,Київ,58,2016-09-13,26004020050550,"Виготовлення друкованих матеріалів (плакатів, листівок, буклетів та інших агітаційних матеріалів)",Друкована агітація,138722,Центральний офіс,33492420,Україна,Друк звітності,26009000000569,current,630.00,"РГ ""Урядовий курʼєр""",32109603,юридична особа
ГРОМАДЯНСЬКА ПОЗИЦІЯ,"Київ, вулиця Миколи Лєскова, 9",70,2016-09-06,Ьп,Банківські послуги,Інші витрати,138831,Львівська обласна організація,37277596,Львівська область,Комісія за надання дублікату паперової виписки,26005314012,current,150.00,"АТ ""Райффайзен банк Аваль""",14305909,юридична особа
ГРОМАДЯНСЬКА ПОЗИЦІЯ,"Київ, вулиця Михайла Грушевського, 1Д",70,2016-09-05,AS69544yop,Банківські послуги,Інші витрати,138917,Дніпропетровська обласна організація,37006888,Дніпропетровська область,Комісія за обслуговування рахунку,26005050226940,current,100.00,"ПАТ КБ ""Приватбанк""",14360570,юридична особа
ГРОМАДЯНСЬКА ПОЗИЦІЯ,"Київ, вулиця Михайла Грушевського, 1Д",70,2016-09-05,,Банківські послуги,Інші витрати,138873,Івано-Франківська обласна організація,36733960,Івано-Франківська область,Комісія за обслуговування рахунку,26000052516833,current,119.98,"ПАТ КБ ""Приватбанк""",14360570,юридична особа
ГРОМАДЯНСЬКА ПОЗИЦІЯ,"Київ, вулиця Михайла Грушевського, 1Д",70,2016-09-02,0902L02Z4 У,Банківські послуги,Інші витрати,138916,Дніпропетровська обласна організація,37006888,Дніпропетровська область,Комісія за дебетовий платіж,26005050226940,current,3.00,"ПАТ КБ ""Приватбанк""",14360570,юридична особа
ГРОМАДЯНСЬКА ПОЗИЦІЯ,"Київ, вулиця Михайла Грушевського, 1Д",70,2016-09-02,б/н,Банківські послуги,Інші витрати,138812,Волинська обласна організація,37204512,Волинська область,"Погашення простроченої заборгованості за РКО, згідно з відкритою офертою банку N б/н від 2015-08-03, без ПДВ.",2600805509013,current,93.98,"ПАТ КБ ""Приватбанк""",14360570,юридична особа
ГРОМАДЯНСЬКА ПОЗИЦІЯ,"Київ, вулиця Госпітальна, 12Г",70,2016-09-01,47627056,Банківські послуги,Інші витрати,138926,Тернопільська обласна організація,37016189,Тернопільська область,Комісія за розрахункове обслуговування рахунку,26002300597395,current,30.00,"АТ ""Ощадбанк""",00032129,юридична особа
ГРОМАДЯНСЬКА ПОЗИЦІЯ,"Київ, вулиця Антоновича, 127",70,2016-09-01,26004020050550,Банківські послуги,Інші витрати,138721,Центральний офіс,33492420,Україна,Послуги банку,26009000000569,current,18.73,"АТ ""Укрексімбанк""",00032112,юридична особа
ГРОМАДЯНСЬКА ПОЗИЦІЯ,"Київ, вулиця Антоновича, 127",70,2016-09-01,26004020050550,Банківські послуги,Інші витрати,138720,Центральний офіс,33492420,Україна,Послуги банку,26009000000569,current,30.00,"АТ ""Укрексімбанк""",00032112,юридична особа
ГРОМАДЯНСЬКА ПОЗИЦІЯ,"Київ, вулиця Антоновича, 127",70,2016-09-01,26004020050550,Банківські послуги,Інші витрати,138719,Центральний офіс,33492420,Україна,Послуги банку,26009000000569,current,2.50,"АТ ""Укрексімбанк""",00032112,юридична особа
ГРОМАДЯНСЬКА ПОЗИЦІЯ,,84,2016-09-01,1296,"Заробітна плата, премії","Заробітна плата, лікарняні, вагітності, відрядження, компенсації",138565,Центральний офіс,33492420,Україна,ЗП за серпень 2016р.,26009000000569,current,2415.00,Царьов Ігор Анатолійович,,фізична особа
ГРОМАДЯНСЬКА ПОЗИЦІЯ,,84,2016-09-01,1296,"Заробітна плата, премії","Заробітна плата, лікарняні, вагітності, відрядження, компенсації",138564,Центральний офіс,33492420,Україна,ЗП за серпень 2016р.,26009000000569,current,603.75,Комарова Ганна Георгіївна,,фізична особа
ГРОМАДЯНСЬКА ПОЗИЦІЯ,,84,2016-09-01,1296,"Заробітна плата, премії","Заробітна плата, лікарняні, вагітності, відрядження, компенсації",138563,Центральний офіс,33492420,Україна,ЗП за серпень 2016р.,26009000000569,current,727.77,Павлик Зоя Борисівна,,фізична особа
ГРОМАДЯНСЬКА ПОЗИЦІЯ,"Київ, вулиця Академіка Туполєва, 28А",63,2016-08-31,26004020050550,Податок на доходи,Податкові платежі,138718,Центральний офіс,33492420,Україна,Податки до держбюджету,26009000000569,current,900.00,УДКСУ у Шевченківському районі м. Києва,37995466,юридична особа
ГРОМАДЯНСЬКА ПОЗИЦІЯ,"Київ, вулиця Академіка Туполєва, 28А",63,2016-08-31,26004020050550,Податок на доходи,Податкові платежі,138717,Центральний офіс,33492420,Україна,Податки до держбюджету,26009000000569,current,68.00,УДКСУ у Шевченківському районі м. Києва,37995466,юридична особа
ГРОМАДЯНСЬКА ПОЗИЦІЯ,Київ,60,2016-08-31,26004020050550,Інші податки,Податкові платежі,138716,Центральний офіс,33492420,Україна,Податки до держбюджету,26009000000569,current,1230.00,ДПІ у Шевченківському районі у м. Києві,38728711,юридична особа
ГРОМАДЯНСЬКА ПОЗИЦІЯ,"Київ, вулиця Магнітогорська, 1",76,2016-08-31,26004020050550,Послуги зв’язку,Послуги зв’язку,138715,Центральний офіс,33492420,Україна,Оплата послуг,26009000000569,current,170.00,"ТОВ ""Воля-кабель""",30777913,юридична особа
ГРОМАДЯНСЬКА ПОЗИЦІЯ,Київ,48,2016-08-31,26004020050550,Публікування матеріалів у мережі Інтернет,Реклама в інтернеті,138714,Центральний офіс,33492420,Україна,Оплата послуг,26009000000569,current,1200.00,"ТОВ ""ГІГАЦЕНТР""",37956851,юридична особа
ГРОМАДЯНСЬКА ПОЗИЦІЯ,Київ,48,2016-08-31,26004020050550,Публікування матеріалів у мережі Інтернет,Реклама в інтернеті,138713,Центральний офіс,33492420,Україна,Оплата послуг,26009000000569,current,800.00,"ТОВ ""ГІГАТРАНС""",34603204,юридична особа
ГРОМАДЯНСЬКА ПОЗИЦІЯ,"Київ, вулиця Антоновича, 127",70,2016-08-31,26004020050550,Банківські послуги,Інші витрати,138712,Центральний офіс,33492420,Україна,Послуги банку,26009000000569,current,96.00,"АТ ""Укрексімбанк""",00032112,юридична особа
ГРОМАДЯНСЬКА ПОЗИЦІЯ,"Київ, вулиця Миколи Лєскова, 9",70,2016-08-30,Ьп,Банківські послуги,Інші витрати,138830,Львівська обласна організація,37277596,Львівська область,Комісія за користування пакетом,26005314012,current,100.00,"АТ ""Райффайзен банк Аваль""",14305909,юридична особа
ГРОМАДЯНСЬКА ПОЗИЦІЯ,"Київ, вулиця Миколи Лєскова, 9",70,2016-08-30,Ьп,Банківські послуги,Інші витрати,138829,Львівська обласна організація,37277596,Львівська область,Комісія за надання виписки,26005314012,current,50.00,"АТ ""Райффайзен банк Аваль""",14305909,юридична особа
ГРОМАДЯНСЬКА ПОЗИЦІЯ,"Чернігівська область, Чернігів, вулиця Мстиславська, 17",79,2016-08-17,26004020050550,"Оренда будинків і приміщень та експлуатаційні витрати (прибирання, страхування орендованих будинків, охорона, сигналізація, ремонт, вивіз сміття, тощо)",Оренда нерухомості,138711,Центральний офіс,33492420,Україна,Оренда приміщення,26009000000569,current,4029.82,Фонд комунального майна Чернігівської міської ради,14227121,юридична особа
ГРОМАДЯНСЬКА ПОЗИЦІЯ,"Київ, вулиця Антоновича, 127",70,2016-08-17,26004020050550,Банківські послуги,Інші витрати,138710,Центральний офіс,33492420,Україна,Послуги банку,26009000000569,current,2.50,"АТ ""Укрексімбанк""",00032112,юридична особа
ГРОМАДЯНСЬКА ПОЗИЦІЯ,"Київ, вулиця Михайла Грушевського, 1Д",70,2016-08-15,0815LOBR НУ,Банківські послуги,Інші витрати,138914,Дніпропетровська обласна організація,37006888,Дніпропетровська область,Комісія за дебетовий платіж,26005050226940,current,3.00,"ПАТ КБ ""Приватбанк""",14360570,юридична особа
ГРОМАДЯНСЬКА ПОЗИЦІЯ,"Київ, вулиця Михайла Грушевського, 1Д",70,2016-08-08,,Банківські послуги,Інші витрати,138875,Івано-Франківська обласна організація,36733960,Івано-Франківська область,Комісія за обслуговування рахунку,26000052516833,current,119.98,"ПАТ КБ ""Приватбанк""",14360570,юридична особа
ГРОМАДЯНСЬКА ПОЗИЦІЯ,"Івано-Франківська область, Івано-Франківськ, вулиця Михайла Грушевського, 32",63,2016-08-08,33,Податок на доходи,Податкові платежі,138864,Івано-Франківська обласна організація,36733960,Івано-Франківська область,ПДФО з зарплати за квітень-травень,26000052516833,current,702.90,УДКСУ у м. Івано-Франківську,37952250,юридична особа
ГРОМАДЯНСЬКА ПОЗИЦІЯ,"Івано-Франківська область, Івано-Франківськ",62,2016-08-08,39,Сплата ЄСВ,Податкові платежі,138859,Івано-Франківська обласна організація,36733960,Івано-Франківська область,ЄСВ з зарплати за квітень-травень,26000052516833,current,1617.00,ДПІ в м. Івано-Франківську ГУ ДФС в Івано-Франківській області,39508514,юридична особа
ГРОМАДЯНСЬКА ПОЗИЦІЯ,"Київ, вулиця Михайла Грушевського, 1Д",70,2016-08-08,ЬШ9Ь0048,Банківські послуги,Інші витрати,138854,Івано-Франківська обласна організація,36733960,Івано-Франківська область,Комісія за ведення рахунку,26000052516833,current,458.66,"ПАТ КБ ""Приватбанк""",14360570,юридична особа
ГРОМАДЯНСЬКА ПОЗИЦІЯ,,84,2016-08-08,38,"Заробітна плата, премії","Заробітна плата, лікарняні, вагітності, відрядження, компенсації",138846,Івано-Франківська обласна організація,36733960,Івано-Франківська область,Заробітна плата,26000052516833,current,1291.27,Ревтюк Христина Василівна,,фізична особа
ГРОМАДЯНСЬКА ПОЗИЦІЯ,"Київ, вулиця Михайла Грушевського, 1Д",70,2016-08-01,AS67t2ewgp,Банківські послуги,Інші витрати,138912,Дніпропетровська обласна організація,37006888,Дніпропетровська область,Комісія за обслуговування рахунку,26005050226940,current,100.00,"ПАТ КБ ""Приватбанк""",14360570,юридична особа
ГРОМАДЯНСЬКА ПОЗИЦІЯ,"Київ, вулиця Михайла Грушевського, 1Д",70,2016-08-01,,Банківські послуги,Інші витрати,138872,Івано-Франківська обласна організація,36733960,Івано-Франківська область,Комісія за обслуговування рахунку,26000052516833,current,119.98,"ПАТ КБ ""Приватбанк""",14360570,юридична особа
ГРОМАДЯНСЬКА ПОЗИЦІЯ,"Київ, вулиця Антоновича, 127",70,2016-07-29,26004020050550,Банківські послуги,Інші витрати,138709,Центральний офіс,33492420,Україна,Послуги банку,26009000000569,current,30.00,"АТ ""Укрексімбанк""",00032112,юридична особа
ГРОМАДЯНСЬКА ПОЗИЦІЯ,"Київ, вулиця Антоновича, 127",70,2016-07-29,26004020050550,Банківські послуги,Інші витрати,138708,Центральний офіс,33492420,Україна,Послуги банку,26009000000569,current,96.00,"АТ ""Укрексімбанк""",00032112,юридична особа
ГРОМАДЯНСЬКА ПОЗИЦІЯ,"Київ, вулиця Антоновича, 127",70,2016-07-29,26004020050550,Банківські послуги,Інші витрати,138707,Центральний офіс,33492420,Україна,Послуги банку,26009000000569,current,2.50,"АТ ""Укрексімбанк""",00032112,юридична особа
ГРОМАДЯНСЬКА ПОЗИЦІЯ,,79,2016-07-29,1287,"Оренда будинків і приміщень та експлуатаційні витрати (прибирання, страхування орендованих будинків, охорона, сигналізація, ремонт, вивіз сміття, тощо)",Оренда нерухомості,138562,Центральний офіс,33492420,Україна,Оренда приміщення,26009000000569,current,4000.00,Михайличенко Алла Олексіївна,,фізична особа
ГРОМАДЯНСЬКА ПОЗИЦІЯ,"Київ, вулиця Миколи Лєскова, 9",70,2016-07-28,Ьп,Банківські послуги,Інші витрати,138828,Львівська обласна організація,37277596,Львівська область,Комісія за користування пакетом,26005314012,current,100.00,"АТ ""Райффайзен банк Аваль""",14305909,юридична особа
ГРОМАДЯНСЬКА ПОЗИЦІЯ,"Київ, вулиця Миколи Лєскова, 9",70,2016-07-28,Ьп,Банківські послуги,Інші витрати,138827,Львівська обласна організація,37277596,Львівська область,Комісія за надання виписки,26005314012,current,50.00,"АТ ""Райффайзен банк Аваль""",14305909,юридична особа
ГРОМАДЯНСЬКА ПОЗИЦІЯ,"Київ, вулиця Академіка Туполєва, 28А",63,2016-07-26,26004020050550,Податок на доходи,Податкові платежі,138706,Центральний офіс,33492420,Україна,Податки до держбюджету,26009000000569,current,900.00,УДКСУ у Шевченківському районі м. Києва,37995466,юридична особа
ГРОМАДЯНСЬКА ПОЗИЦІЯ,"Київ, вулиця Академіка Туполєва, 28А",63,2016-07-26,26004020050550,Податок на доходи,Податкові платежі,138705,Центральний офіс,33492420,Україна,Податки до держбюджету,26009000000569,current,68.00,УДКСУ у Шевченківському районі м. Києва,37995466,юридична особа
ГРОМАДЯНСЬКА ПОЗИЦІЯ,Київ,60,2016-07-26,26004020050550,Інші податки,Податкові платежі,138704,Центральний офіс,33492420,Україна,Податки до держбюджету,26009000000569,current,1230.00,ДПІ у Шевченківському районі у м. Києві,38728711,юридична особа
ГРОМАДЯНСЬКА ПОЗИЦІЯ,"Київ, вулиця Антоновича, 127",70,2016-07-26,26004020050550_72,Банківські послуги,Інші витрати,138703,Центральний офіс,33492420,Україна,Послуги банку,26009000000569,current,18.73,"АТ ""Укрексімбанк""",00032112,юридична особа
ГРОМАДЯНСЬКА ПОЗИЦІЯ,"Київ, вулиця Антоновича, 127",70,2016-07-26,26004020050550_71,Банківські послуги,Інші витрати,138702,Центральний офіс,33492420,Україна,Послуги банку,26009000000569,current,2.50,"АТ ""Укрексімбанк""",00032112,юридична особа
ГРОМАДЯНСЬКА ПОЗИЦІЯ,"Київ, вулиця Антоновича, 127",70,2016-07-26,26004020050550_70,Банківські послуги,Інші витрати,138701,Центральний офіс,33492420,Україна,Послуги банку,26009000000569,current,2.50,"АТ ""Укрексімбанк""",00032112,юридична особа
ГРОМАДЯНСЬКА ПОЗИЦІЯ,"Київ, вулиця Антоновича, 127",70,2016-07-26,26004020050550_69,Банківські послуги,Інші витрати,138700,Центральний офіс,33492420,Україна,Послуги банку,26009000000569,current,2.50,"АТ ""Укрексімбанк""",00032112,юридична особа
ГРОМАДЯНСЬКА ПОЗИЦІЯ,"Київ, вулиця Антоновича, 127",70,2016-07-26,26004020050550_68,Банківські послуги,Інші витрати,138699,Центральний офіс,33492420,Україна,Послуги банку,26009000000569,current,2.50,"АТ ""Укрексімбанк""",00032112,юридична особа
ГРОМАДЯНСЬКА ПОЗИЦІЯ,"Київ, вулиця Магнітогорська, 1",76,2016-07-26,26004020050550,Послуги зв’язку,Послуги зв’язку,138698,Центральний офіс,33492420,Україна,Оплата послуг,26009000000569,current,170.00,"ТОВ ""Воля-кабель""",30777913,юридична особа
ГРОМАДЯНСЬКА ПОЗИЦІЯ,"Київ, вулиця Антоновича, 127",70,2016-07-26,26004020050550_67,Банківські послуги,Інші витрати,138697,Центральний офіс,33492420,Україна,Послуги банку,26009000000569,current,2.50,"АТ ""Укрексімбанк""",00032112,юридична особа
ГРОМАДЯНСЬКА ПОЗИЦІЯ,"Київ, вулиця Антоновича, 127",70,2016-07-26,26004020050550_66,Банківські послуги,Інші витрати,138696,Центральний офіс,33492420,Україна,Послуги банку,26009000000569,current,2.50,"АТ ""Укрексімбанк""",00032112,юридична особа
ГРОМАДЯНСЬКА ПОЗИЦІЯ,"Київ, вулиця Антоновича, 127",70,2016-07-26,26004020050550,Банківські послуги,Інші витрати,138695,Центральний офіс,33492420,Україна,Послуги банку,26009000000569,current,2.50,"АТ ""Укрексімбанк""",00032112,юридична особа
ГРОМАДЯНСЬКА ПОЗИЦІЯ,Київ,48,2016-07-26,26004020050550,Публікування матеріалів у мережі Інтернет,Реклама в інтернеті,138694,Центральний офіс,33492420,Україна,Оплата послуг,26009000000569,current,800.00,"ТОВ ""ГІГАТРАНС""",34603204,юридична особа
ГРОМАДЯНСЬКА ПОЗИЦІЯ,Київ,48,2016-07-26,26004020050550,Публікування матеріалів у мережі Інтернет,Реклама в інтернеті,138693,Центральний офіс,33492420,Україна,Оплата послуг,26009000000569,current,1200.00,"ТОВ ""ГІГАЦЕНТР""",37956851,юридична особа
ГРОМАДЯНСЬКА ПОЗИЦІЯ,,84,2016-07-26,1286,"Заробітна плата, премії","Заробітна плата, лікарняні, вагітності, відрядження, компенсації",138561,Центральний офіс,33492420,Україна,ЗП за липень 2016р.,26009000000569,current,2415.00,Царьов Ігор Анатолійович,,фізична особа
ГРОМАДЯНСЬКА ПОЗИЦІЯ,,84,2016-07-26,1286,"Заробітна плата, премії","Заробітна плата, лікарняні, вагітності, відрядження, компенсації",138560,Центральний офіс,33492420,Україна,ЗП за липень 2016р.,26009000000569,current,603.75,Комарова Ганна Георгіївна,,фізична особа
ГРОМАДЯНСЬКА ПОЗИЦІЯ,,84,2016-07-26,1286,"Заробітна плата, премії","Заробітна плата, лікарняні, вагітності, відрядження, компенсації",138559,Центральний офіс,33492420,Україна,ЗП за липень 2016р.,26009000000569,current,727.77,Павлик Зоя Борисівна,,фізична особа
ГРОМАДЯНСЬКА ПОЗИЦІЯ,"Київ, вулиця Михайла Грушевського, 1Д",70,2016-07-20,,Банківські послуги,Інші витрати,138874,Івано-Франківська обласна організація,36733960,Івано-Франківська область,Комісія за обслуговування рахунку,26000052516833,current,119.98,"ПАТ КБ ""Приватбанк""",14360570,юридична особа
ГРОМАДЯНСЬКА ПОЗИЦІЯ,"Івано-Франківська область, Івано-Франківськ, вулиця Михайла Грушевського, 32",61,2016-07-20,36,Військовий збір,Податкові платежі,138868,Івано-Франківська обласна організація,36733960,Івано-Франківська область,ВЗ з зарплати за квітень-травень,26000052516833,current,110.25,УДКСУ у м. Івано-Франківську,37952250,юридична особа
ГРОМАДЯНСЬКА ПОЗИЦІЯ,"Івано-Франківська область, Івано-Франківськ, вулиця Михайла Грушевського, 32",63,2016-07-20,30,Податок на доходи,Податкові платежі,138863,Івано-Франківська обласна організація,36733960,Івано-Франківська область,ПДФО з зарплати за квітень-травень,26000052516833,current,702.90,УДКСУ у м. Івано-Франківську,37952250,юридична особа
ГРОМАДЯНСЬКА ПОЗИЦІЯ,"Івано-Франківська область, Івано-Франківськ",62,2016-07-20,34,Сплата ЄСВ,Податкові платежі,138858,Івано-Франківська обласна організація,36733960,Івано-Франківська область,ЄСВ з зарплати за квітень-травень,26000052516833,current,1617.00,ДПІ в м. Івано-Франківську ГУ ДФС в Івано-Франківській області,39508514,юридична особа
ГРОМАДЯНСЬКА ПОЗИЦІЯ,"Київ, вулиця Михайла Грушевського, 1Д",70,2016-07-20,ЬШ9Ь0048,Банківські послуги,Інші витрати,138853,Івано-Франківська обласна організація,36733960,Івано-Франківська область,Комісія за ведення рахунку,26000052516833,current,458.66,"ПАТ КБ ""Приватбанк""",14360570,юридична особа
ГРОМАДЯНСЬКА ПОЗИЦІЯ,,84,2016-07-20,32,"Заробітна плата, премії","Заробітна плата, лікарняні, вагітності, відрядження, компенсації",138845,Івано-Франківська обласна організація,36733960,Івано-Франківська область,Заробітна плата,26000052516833,current,1378.38,Ревтюк Христина Василівна,,фізична особа
ГРОМАДЯНСЬКА ПОЗИЦІЯ,"Київ, вулиця Антоновича, 127",70,2016-07-12,26004020050550,Банківські послуги,Інші витрати,138692,Центральний офіс,33492420,Україна,Послуги банку,26009000000569,current,2.50,"АТ ""Укрексімбанк""",00032112,юридична особа
ГРОМАДЯНСЬКА ПОЗИЦІЯ,,74,2016-07-12,1279,"Придбання канцтоварів, паперу, інших предметів і матеріалів, а також госп товари",Придбання канцтоварів та госп. товарів,138558,Центральний офіс,33492420,Україна,За канцтовари,26009000000569,current,372.50,Королько О Ю,,фізична особа
ГРОМАДЯНСЬКА ПОЗИЦІЯ,"Київ, вулиця Михайла Грушевського, 1Д",70,2016-07-04,0704L289Y Y,Банківські послуги,Інші витрати,138911,Дніпропетровська обласна організація,37006888,Дніпропетровська область,Комісія за дебетовий платіж,26005050226940,current,3.00,"ПАТ КБ ""Приватбанк""",14360570,юридична особа
ГРОМАДЯНСЬКА ПОЗИЦІЯ,"Київ, вулиця Антоновича, 127",70,2016-07-04,26004020050550,Банківські послуги,Інші витрати,138691,Центральний офіс,33492420,Україна,Послуги банку,26009000000569,current,30.00,"АТ ""Укрексімбанк""",00032112,юридична особа
ГРОМАДЯНСЬКА ПОЗИЦІЯ,"Київ, вулиця Михайла Грушевського, 1Д",70,2016-07-01,AS66u5fxvp,Банківські послуги,Інші витрати,138909,Дніпропетровська обласна організація,37006888,Дніпропетровська область,Комісія за обслуговування рахунку,26005050226940,current,100.00,"ПАТ КБ ""Приватбанк""",14360570,юридична особа
ГРОМАДЯНСЬКА ПОЗИЦІЯ,"Київ, вулиця Михайла Грушевського, 1Д",70,2016-07-01,,Банківські послуги,Інші витрати,138871,Івано-Франківська обласна організація,36733960,Івано-Франківська область,Комісія за обслуговування рахунку,26000052516833,current,119.98,"ПАТ КБ ""Приватбанк""",14360570,юридична особа
ГРОМАДЯНСЬКА ПОЗИЦІЯ,"Київ, вулиця Михайла Грушевського, 1Д",70,2016-07-01,Л866и5с1)р,Банківські послуги,Інші витрати,138811,Волинська обласна організація,37204512,Волинська область,"Комісія за обслуговування рахунку червень 2016р. згідно договору банківського рахунку від 2015-08-03, без ПДВ",2600805509013,current,6.02,"ПАТ КБ ""Приватбанк""",14360570,юридична особа
ГРОМАДЯНСЬКА ПОЗИЦІЯ,"Київ, вулиця Антоновича, 127",70,2016-06-30,26004020050550,Банківські послуги,Інші витрати,138690,Центральний офіс,33492420,Україна,Послуги банку,26009000000569,current,96.00,"АТ ""Укрексімбанк""",00032112,юридична особа
ГРОМАДЯНСЬКА ПОЗИЦІЯ,"Київ, вулиця Миколи Лєскова, 9",70,2016-06-29,Ьп,Банківські послуги,Інші витрати,138826,Львівська обласна організація,37277596,Львівська область,Комісія за користування пакетом,26005314012,current,100.00,"АТ ""Райффайзен банк Аваль""",14305909,юридична особа
ГРОМАДЯНСЬКА ПОЗИЦІЯ,"Київ, вулиця Миколи Лєскова, 9",70,2016-06-29,Ьп,Банківські послуги,Інші витрати,138825,Львівська обласна організація,37277596,Львівська область,Комісія за надання виписки,26005314012,current,50.00,"АТ ""Райффайзен банк Аваль""",14305909,юридична особа
ГРОМАДЯНСЬКА ПОЗИЦІЯ,"Київ, вулиця Академіка Туполєва, 28А",63,2016-06-29,26004020050550,Податок на доходи,Податкові платежі,138689,Центральний офіс,33492420,Україна,Податки до держбюджету,26009000000569,current,900.00,УДКСУ у Шевченківському районі м. Києва,37995466,юридична особа
ГРОМАДЯНСЬКА ПОЗИЦІЯ,"Київ, вулиця Академіка Туполєва, 28А",63,2016-06-29,26004020050550,Податок на доходи,Податкові платежі,138688,Центральний офіс,33492420,Україна,Податки до держбюджету,26009000000569,current,68.00,УДКСУ у Шевченківському районі м. Києва,37995466,юридична особа
ГРОМАДЯНСЬКА ПОЗИЦІЯ,Київ,60,2016-06-29,26004020050550,Інші податки,Податкові платежі,138687,Центральний офіс,33492420,Україна,Податки до держбюджету,26009000000569,current,1230.00,ДПІ у Шевченківському районі у м. Києві,38728711,юридична особа
ГРОМАДЯНСЬКА ПОЗИЦІЯ,"Київ, вулиця Антоновича, 127",70,2016-06-29,26004020050550,Банківські послуги,Інші витрати,138686,Центральний офіс,33492420,Україна,Послуги банку,26009000000569,current,18.73,"АТ ""Укрексімбанк""",00032112,юридична особа
ГРОМАДЯНСЬКА ПОЗИЦІЯ,"Київ, вулиця Магнітогорська, 1",76,2016-06-29,26004020050550,Послуги зв’язку,Послуги зв’язку,138685,Центральний офіс,33492420,Україна,Оплата послуг,26009000000569,current,162.40,"ТОВ ""Воля-кабель""",30777913,юридична особа
ГРОМАДЯНСЬКА ПОЗИЦІЯ,"Київ, вулиця Антоновича, 127",70,2016-06-29,26004020050550_65,Банківські послуги,Інші витрати,138684,Центральний офіс,33492420,Україна,Послуги банку,26009000000569,current,2.50,"АТ ""Укрексімбанк""",00032112,юридична особа
ГРОМАДЯНСЬКА ПОЗИЦІЯ,"Київ, вулиця Антоновича, 127",70,2016-06-29,26004020050550_38,Банківські послуги,Інші витрати,138683,Центральний офіс,33492420,Україна,Послуги банку,26009000000569,current,2.50,"АТ ""Укрексімбанк""",00032112,юридична особа
ГРОМАДЯНСЬКА ПОЗИЦІЯ,"Київ, вулиця Антоновича, 127",70,2016-06-29,26004020050550_37,Банківські послуги,Інші витрати,138682,Центральний офіс,33492420,Україна,Послуги банку,26009000000569,current,2.50,"АТ ""Укрексімбанк""",00032112,юридична особа
ГРОМАДЯНСЬКА ПОЗИЦІЯ,"Київ, вулиця Антоновича, 127",70,2016-06-29,26004020050550_36,Банківські послуги,Інші витрати,138681,Центральний офіс,33492420,Україна,Послуги банку,26009000000569,current,2.50,"АТ ""Укрексімбанк""",00032112,юридична особа
ГРОМАДЯНСЬКА ПОЗИЦІЯ,"Київ, вулиця Антоновича, 127",70,2016-06-29,26004020050550_35,Банківські послуги,Інші витрати,138680,Центральний офіс,33492420,Україна,Послуги банку,26009000000569,current,2.50,"АТ ""Укрексімбанк""",00032112,юридична особа
ГРОМАДЯНСЬКА ПОЗИЦІЯ,"Київ, вулиця Антоновича, 127",70,2016-06-29,26004020050550,Банківські послуги,Інші витрати,138679,Центральний офіс,33492420,Україна,Послуги банку,26009000000569,current,2.50,"АТ ""Укрексімбанк""",00032112,юридична особа
ГРОМАДЯНСЬКА ПОЗИЦІЯ,Київ,48,2016-06-29,26004020050550,Публікування матеріалів у мережі Інтернет,Реклама в інтернеті,138678,Центральний офіс,33492420,Україна,Оплата послуг,26009000000569,current,800.00,"ТОВ ""ГІГАТРАНС""",34603204,юридична особа
ГРОМАДЯНСЬКА ПОЗИЦІЯ,Київ,48,2016-06-29,26004020050550,Публікування матеріалів у мережі Інтернет,Реклама в інтернеті,138677,Центральний офіс,33492420,Україна,Оплата послуг,26009000000569,current,1200.00,"ТОВ ""ГІГАЦЕНТР""",37956851,юридична особа
ГРОМАДЯНСЬКА ПОЗИЦІЯ,,84,2016-06-29,1278,"Заробітна плата, премії","Заробітна плата, лікарняні, вагітності, відрядження, компенсації",138557,Центральний офіс,33492420,Україна,ЗП за червень 2016р.,26009000000569,current,2415.00,Царьов Ігор Анатолійович,,фізична особа
ГРОМАДЯНСЬКА ПОЗИЦІЯ,,84,2016-06-29,1278,"Заробітна плата, премії","Заробітна плата, лікарняні, вагітності, відрядження, компенсації",138556,Центральний офіс,33492420,Україна,ЗП за червень 2016р.,26009000000569,current,603.75,Комарова Ганна Георгіївна,,фізична особа
ГРОМАДЯНСЬКА ПОЗИЦІЯ,,84,2016-06-29,1278,"Заробітна плата, премії","Заробітна плата, лікарняні, вагітності, відрядження, компенсації",138555,Центральний офіс,33492420,Україна,ЗП за червень 2016р.,26009000000569,current,727.77,Павлик Зоя Борисівна,,фізична особа
ГРОМАДЯНСЬКА ПОЗИЦІЯ,"Київ, вулиця Михайла Грушевського, 1Д",70,2016-06-21,0621L03BX Y,Банківські послуги,Інші витрати,138907,Дніпропетровська обласна організація,37006888,Дніпропетровська область,Комісія за дебетовий платіж,26005050226940,current,3.00,"ПАТ КБ ""Приватбанк""",14360570,юридична особа
ГРОМАДЯНСЬКА ПОЗИЦІЯ,"Київ, вулиця Антоновича, 127",70,2016-06-21,26004020050550,Банківські послуги,Інші витрати,138676,Центральний офіс,33492420,Україна,Послуги банку,26009000000569,current,30.00,"АТ ""Укрексімбанк""",00032112,юридична особа
ГРОМАДЯНСЬКА ПОЗИЦІЯ,,49,2016-06-17,3,Публікування матеріалів у друкованих ЗМІ,Реклама в друкованих ЗМІ,138804,Волинська обласна організація,37204512,Волинська область,"РАХУНОК N 126 від 13 червня 2016 року. Розміщення рекламно-інформаційної статті в газеті ""Сімʼя і дім"" N 24 від 16 06 2016 р Без ПДВ",2600805509013,current,2000.00,Якобчук Віталій Вʼячеславович,,фізична особа
ГРОМАДЯНСЬКА ПОЗИЦІЯ,"Івано-Франківська область, Івано-Франківськ, вулиця Михайла Грушевського, 32",61,2016-06-07,31,Військовий збір,Податкові платежі,138867,Івано-Франківська обласна організація,36733960,Івано-Франківська область,ВЗ з зарплати за квітень-травень,26000052516833,current,110.25,УДКСУ у м. Івано-Франківську,37952250,юридична особа
ГРОМАДЯНСЬКА ПОЗИЦІЯ,"Івано-Франківська область, Івано-Франківськ, вулиця Михайла Грушевського, 32",63,2016-06-07,22,Податок на доходи,Податкові платежі,138862,Івано-Франківська обласна організація,36733960,Івано-Франківська область,ПДФО з зарплати за квітень-травень,26000052516833,current,702.90,УДКСУ у м. Івано-Франківську,37952250,юридична особа
ГРОМАДЯНСЬКА ПОЗИЦІЯ,"Івано-Франківська область, Івано-Франківськ",62,2016-06-07,29,Сплата ЄСВ,Податкові платежі,138857,Івано-Франківська обласна організація,36733960,Івано-Франківська область,ЄСВ з зарплати за квітень-травень,26000052516833,current,1617.00,ДПІ в м. Івано-Франківську ГУ ДФС в Івано-Франківській області,39508514,юридична особа
ГРОМАДЯНСЬКА ПОЗИЦІЯ,"Київ, вулиця Михайла Грушевського, 1Д",70,2016-06-07,ЬШ9Ь0048,Банківські послуги,Інші витрати,138852,Івано-Франківська обласна організація,36733960,Івано-Франківська область,Комісія за ведення рахунку,26000052516833,current,458.66,"ПАТ КБ ""Приватбанк""",14360570,юридична особа
ГРОМАДЯНСЬКА ПОЗИЦІЯ,,84,2016-06-07,28,"Заробітна плата, премії","Заробітна плата, лікарняні, вагітності, відрядження, компенсації",138844,Івано-Франківська обласна організація,36733960,Івано-Франківська область,Заробітна плата,26000052516833,current,1207.00,Ревтюк Христина Василівна,,фізична особа
ГРОМАДЯНСЬКА ПОЗИЦІЯ,"Київ, вулиця Михайла Грушевського, 1Д",70,2016-06-01,AS65v0cfop,Банківські послуги,Інші витрати,138906,Дніпропетровська обласна організація,37006888,Дніпропетровська область,Комісія за обслуговування рахунку,26005050226940,current,100.00,"ПАТ КБ ""Приватбанк""",14360570,юридична особа
ГРОМАДЯНСЬКА ПОЗИЦІЯ,"Київ, вулиця Антоновича, 127",70,2016-05-31,26004020050550,Банківські послуги,Інші витрати,138675,Центральний офіс,33492420,Україна,Послуги банку,26009000000569,current,96.00,"АТ ""Укрексімбанк""",00032112,юридична особа
ГРОМАДЯНСЬКА ПОЗИЦІЯ,"Київ, вулиця Миколи Лєскова, 9",70,2016-05-30,Ьп,Банківські послуги,Інші витрати,138824,Львівська обласна організація,37277596,Львівська область,Комісія за користування пакетом,26005314012,current,100.00,"АТ ""Райффайзен банк Аваль""",14305909,юридична особа
ГРОМАДЯНСЬКА ПОЗИЦІЯ,"Київ, вулиця Миколи Лєскова, 9",70,2016-05-30,Ьп,Банківські послуги,Інші витрати,138823,Львівська обласна організація,37277596,Львівська область,Комісія за надання виписки,26005314012,current,50.00,"АТ ""Райффайзен банк Аваль""",14305909,юридична особа
ГРОМАДЯНСЬКА ПОЗИЦІЯ,"Київ, вулиця Академіка Туполєва, 28А",63,2016-05-30,26004020050550,Податок на доходи,Податкові платежі,138674,Центральний офіс,33492420,Україна,Податки до держбюджету,26009000000569,current,686.00,УДКСУ у Шевченківському районі м. Києва,37995466,юридична особа
ГРОМАДЯНСЬКА ПОЗИЦІЯ,"Київ, вулиця Академіка Туполєва, 28А",63,2016-05-30,26004020050550,Податок на доходи,Податкові платежі,138673,Центральний офіс,33492420,Україна,Податки до держбюджету,26009000000569,current,68.00,УДКСУ у Шевченківському районі м. Києва,37995466,юридична особа
ГРОМАДЯНСЬКА ПОЗИЦІЯ,Київ,60,2016-05-30,26004020050550,Інші податки,Податкові платежі,138672,Центральний офіс,33492420,Україна,Податки до держбюджету,26009000000569,current,1230.00,ДПІ у Шевченківському районі у м. Києві,38728711,юридична особа
ГРОМАДЯНСЬКА ПОЗИЦІЯ,"Київ, вулиця Магнітогорська, 1",76,2016-05-30,26004020050550,Послуги зв’язку,Послуги зв’язку,138671,Центральний офіс,33492420,Україна,Оплата послуг,26009000000569,current,162.40,"ТОВ ""Воля-кабель""",30777913,юридична особа
ГРОМАДЯНСЬКА ПОЗИЦІЯ,"Київ, вулиця Антоновича, 127",70,2016-05-30,26004020050550,Банківські послуги,Інші витрати,138670,Центральний офіс,33492420,Україна,Послуги банку,26009000000569,current,18.73,"АТ ""Укрексімбанк""",00032112,юридична особа
ГРОМАДЯНСЬКА ПОЗИЦІЯ,"Київ, вулиця Антоновича, 127",70,2016-05-30,26004020050550_34,Банківські послуги,Інші витрати,138669,Центральний офіс,33492420,Україна,Послуги банку,26009000000569,current,2.50,"АТ ""Укрексімбанк""",00032112,юридична особа
ГРОМАДЯНСЬКА ПОЗИЦІЯ,"Київ, вулиця Антоновича, 127",70,2016-05-30,26004020050550_33,Банківські послуги,Інші витрати,138668,Центральний офіс,33492420,Україна,Послуги банку,26009000000569,current,2.50,"АТ ""Укрексімбанк""",00032112,юридична особа
ГРОМАДЯНСЬКА ПОЗИЦІЯ,"Київ, вулиця Антоновича, 127",70,2016-05-30,26004020050550_32,Банківські послуги,Інші витрати,138667,Центральний офіс,33492420,Україна,Послуги банку,26009000000569,current,2.50,"АТ ""Укрексімбанк""",00032112,юридична особа
ГРОМАДЯНСЬКА ПОЗИЦІЯ,"Київ, вулиця Антоновича, 127",70,2016-05-30,26004020050550_31,Банківські послуги,Інші витрати,138666,Центральний офіс,33492420,Україна,Послуги банку,26009000000569,current,2.50,"АТ ""Укрексімбанк""",00032112,юридична особа
ГРОМАДЯНСЬКА ПОЗИЦІЯ,"Київ, вулиця Антоновича, 127",70,2016-05-30,26004020050550_30,Банківські послуги,Інші витрати,138665,Центральний офіс,33492420,Україна,Послуги банку,26009000000569,current,2.50,"АТ ""Укрексімбанк""",00032112,юридична особа
ГРОМАДЯНСЬКА ПОЗИЦІЯ,"Київ, вулиця Антоновича, 127",70,2016-05-30,26004020050550_29,Банківські послуги,Інші витрати,138664,Центральний офіс,33492420,Україна,Послуги банку,26009000000569,current,2.50,"АТ ""Укрексімбанк""",00032112,юридична особа
ГРОМАДЯНСЬКА ПОЗИЦІЯ,"Київ, вулиця Антоновича, 127",70,2016-05-30,26004020050550_28,Банківські послуги,Інші витрати,138663,Центральний офіс,33492420,Україна,Послуги банку,26009000000569,current,2.50,"АТ ""Укрексімбанк""",00032112,юридична особа
ГРОМАДЯНСЬКА ПОЗИЦІЯ,"Київ, вулиця Антоновича, 127",70,2016-05-30,26004020050550,Банківські послуги,Інші витрати,138662,Центральний офіс,33492420,Україна,Послуги банку,26009000000569,current,2.50,"АТ ""Укрексімбанк""",00032112,юридична особа
ГРОМАДЯНСЬКА ПОЗИЦІЯ,Київ,48,2016-05-30,26004020050550,Публікування матеріалів у мережі Інтернет,Реклама в інтернеті,138661,Центральний офіс,33492420,Україна,Оплата послуг,26009000000569,current,800.00,"ТОВ ""ГІГАТРАНС""",34603204,юридична особа
ГРОМАДЯНСЬКА ПОЗИЦІЯ,Київ,48,2016-05-30,26004020050550,Публікування матеріалів у мережі Інтернет,Реклама в інтернеті,138660,Центральний офіс,33492420,Україна,Оплата послуг,26009000000569,current,1200.00,"ТОВ ""ГІГАЦЕНТР""",37956851,юридична особа
ГРОМАДЯНСЬКА ПОЗИЦІЯ,,79,2016-05-30,1252,"Оренда будинків і приміщень та експлуатаційні витрати (прибирання, страхування орендованих будинків, охорона, сигналізація, ремонт, вивіз сміття, тощо)",Оренда нерухомості,138554,Центральний офіс,33492420,Україна,Оренда приміщення,26009000000569,current,7000.00,Михайличенко Алла Олексіївна,,фізична особа
ГРОМАДЯНСЬКА ПОЗИЦІЯ,,84,2016-05-30,1266,"Заробітна плата, премії","Заробітна плата, лікарняні, вагітності, відрядження, компенсації",138553,Центральний офіс,33492420,Україна,ЗП за травень 2016р.,26009000000569,current,2415.00,Царьов Ігор Анатолійович,,фізична особа
ГРОМАДЯНСЬКА ПОЗИЦІЯ,,84,2016-05-30,1266,"Заробітна плата, премії","Заробітна плата, лікарняні, вагітності, відрядження, компенсації",138552,Центральний офіс,33492420,Україна,ЗП за травень 2016р.,26009000000569,current,603.75,Комарова Ганна Георгіївна,,фізична особа
ГРОМАДЯНСЬКА ПОЗИЦІЯ,,84,2016-05-30,1266,"Заробітна плата, премії","Заробітна плата, лікарняні, вагітності, відрядження, компенсації",138551,Центральний офіс,33492420,Україна,ЗП за травень 2016р.,26009000000569,current,727.77,Павлик Зоя Борисівна,,фізична особа
ГРОМАДЯНСЬКА ПОЗИЦІЯ,"Київ, вулиця Антоновича, 127",70,2016-05-11,26004020050550,Банківські послуги,Інші витрати,138659,Центральний офіс,33492420,Україна,Послуги банку,26009000000569,current,2.50,"АТ ""Укрексімбанк""",00032112,юридична особа
ГРОМАДЯНСЬКА ПОЗИЦІЯ,,74,2016-05-11,1263,"Придбання канцтоварів, паперу, інших предметів і матеріалів, а також госп товари",Придбання канцтоварів та госп. товарів,138550,Центральний офіс,33492420,Україна,За канцтовари,26009000000569,current,380.00,Королько О Ю,,фізична особа
ГРОМАДЯНСЬКА ПОЗИЦІЯ,"Івано-Франківська область, Івано-Франківськ, вулиця Михайла Грушевського, 32",61,2016-05-06,23,Військовий збір,Податкові платежі,138866,Івано-Франківська обласна організація,36733960,Івано-Франківська область,ВЗ з зарплати за квітень-травень,26000052516833,current,110.25,УДКСУ у м. Івано-Франківську,37952250,юридична особа
ГРОМАДЯНСЬКА ПОЗИЦІЯ,"Івано-Франківська область, Івано-Франківськ, вулиця Михайла Грушевського, 32",63,2016-05-06,,Податок на доходи,Податкові платежі,138861,Івано-Франківська обласна організація,36733960,Івано-Франківська область,ПДФО з зарплати за квітень-травень,26000052516833,current,702.90,УДКСУ у м. Івано-Франківську,37952250,юридична особа
ГРОМАДЯНСЬКА ПОЗИЦІЯ,"Івано-Франківська область, Івано-Франківськ",62,2016-05-06,21,Сплата ЄСВ,Податкові платежі,138856,Івано-Франківська обласна організація,36733960,Івано-Франківська область,ЄСВ з зарплати за квітень-травень,26000052516833,current,1617.00,ДПІ в м. Івано-Франківську ГУ ДФС в Івано-Франківській області,39508514,юридична особа
ГРОМАДЯНСЬКА ПОЗИЦІЯ,"Київ, вулиця Михайла Грушевського, 1Д",70,2016-05-06,ЬШ9Ь0048,Банківські послуги,Інші витрати,138851,Івано-Франківська обласна організація,36733960,Івано-Франківська область,Комісія за ведення рахунку,26000052516833,current,458.66,"ПАТ КБ ""Приватбанк""",14360570,юридична особа
ГРОМАДЯНСЬКА ПОЗИЦІЯ,,84,2016-05-06,24,"Заробітна плата, премії","Заробітна плата, лікарняні, вагітності, відрядження, компенсації",138843,Івано-Франківська обласна організація,36733960,Івано-Франківська область,Заробітна плата,26000052516833,current,1288.43,Ревтюк Христина Василівна,,фізична особа
ГРОМАДЯНСЬКА ПОЗИЦІЯ,"Київ, вулиця Михайла Грушевського, 1Д",70,2016-05-04,050^0Ш Y,Банківські послуги,Інші витрати,138904,Дніпропетровська обласна організація,37006888,Дніпропетровська область,Комісія за дебетовий платіж,26005050226940,current,3.00,"ПАТ КБ ""Приватбанк""",14360570,юридична особа
ГРОМАДЯНСЬКА ПОЗИЦІЯ,"Київ, вулиця Михайла Грушевського, 1Д",70,2016-05-04,AS64t2i1bp,Банківські послуги,Інші витрати,138903,Дніпропетровська обласна організація,37006888,Дніпропетровська область,Комісія за обслуговування рахунку,26005050226940,current,100.00,"ПАТ КБ ""Приватбанк""",14360570,юридична особа
ГРОМАДЯНСЬКА ПОЗИЦІЯ,"Київ, вулиця Михайла Грушевського, 1Д",70,2016-05-04,AS64t5euxp,Банківські послуги,Інші витрати,138810,Волинська обласна організація,37204512,Волинська область,"Комісія за обслуговування рахунку квітєнь 2016р. згідно договору банківського рахунку від 2015-08-03, без ПДВ",2600805509013,current,100.00,"ПАТ КБ ""Приватбанк""",14360570,юридична особа
ГРОМАДЯНСЬКА ПОЗИЦІЯ,"Київ, вулиця Антоновича, 127",70,2016-05-04,26004020050550,Банківські послуги,Інші витрати,138658,Центральний офіс,33492420,Україна,Послуги банку,26009000000569,current,30.00,"АТ ""Укрексімбанк""",00032112,юридична особа
ГРОМАДЯНСЬКА ПОЗИЦІЯ,"Чернігівська область, Чернігів, вулиця Мстиславська, 17",79,2016-04-29,26004020050550,"Оренда будинків і приміщень та експлуатаційні витрати (прибирання, страхування орендованих будинків, охорона, сигналізація, ремонт, вивіз сміття, тощо)",Оренда нерухомості,138657,Центральний офіс,33492420,Україна,Оренда приміщення,26009000000569,current,1380.00,Фонд комунального майна Чернігівської міської ради,14227121,юридична особа
ГРОМАДЯНСЬКА ПОЗИЦІЯ,"Київ, вулиця Академіка Туполєва, 28А",63,2016-04-29,26004020050550,Податок на доходи,Податкові платежі,138656,Центральний офіс,33492420,Україна,Податки до держбюджету,26009000000569,current,686.00,УДКСУ у Шевченківському районі м. Києва,37995466,юридична особа
ГРОМАДЯНСЬКА ПОЗИЦІЯ,"Київ, вулиця Академіка Туполєва, 28А",63,2016-04-29,26004020050550,Податок на доходи,Податкові платежі,138655,Центральний офіс,33492420,Україна,Податки до держбюджету,26009000000569,current,68.00,УДКСУ у Шевченківському районі м. Києва,37995466,юридична особа
ГРОМАДЯНСЬКА ПОЗИЦІЯ,Київ,60,2016-04-29,26004020050550,Інші податки,Податкові платежі,138654,Центральний офіс,33492420,Україна,Податки до держбюджету,26009000000569,current,1130.00,ДПІ у Шевченківському районі у м. Києві,38728711,юридична особа
ГРОМАДЯНСЬКА ПОЗИЦІЯ,"Київ, вулиця Антоновича, 127",70,2016-04-29,26004020050550,Банківські послуги,Інші витрати,138653,Центральний офіс,33492420,Україна,Послуги банку,26009000000569,current,18.73,"АТ ""Укрексімбанк""",00032112,юридична особа
ГРОМАДЯНСЬКА ПОЗИЦІЯ,"Київ, вулиця Магнітогорська, 1",76,2016-04-29,26004020050550,Послуги зв’язку,Послуги зв’язку,138652,Центральний офіс,33492420,Україна,Оплата послуг,26009000000569,current,162.40,"ТОВ ""Воля-кабель""",30777913,юридична особа
ГРОМАДЯНСЬКА ПОЗИЦІЯ,"Київ, вулиця Антоновича, 127",70,2016-04-29,26004020050550,Банківські послуги,Інші витрати,138651,Центральний офіс,33492420,Україна,Послуги банку,26009000000569,current,96.00,"АТ ""Укрексімбанк""",00032112,юридична особа
ГРОМАДЯНСЬКА ПОЗИЦІЯ,"Київ, вулиця Антоновича, 127",70,2016-04-29,26004020050550_27,Банківські послуги,Інші витрати,138650,Центральний офіс,33492420,Україна,Послуги банку,26009000000569,current,2.50,"АТ ""Укрексімбанк""",00032112,юридична особа
ГРОМАДЯНСЬКА ПОЗИЦІЯ,"Чернігівська область, Чернігів, вулиця Мстиславська, 17",70,2016-04-29,26004020050550_26,Банківські послуги,Інші витрати,138649,Центральний офіс,33492420,Україна,Послуги банку,26009000000569,current,2.50,Фонд комунального майна Чернігівської міської ради,14227121,юридична особа
ГРОМАДЯНСЬКА ПОЗИЦІЯ,"Київ, вулиця Антоновича, 127",70,2016-04-29,26004020050550_25,Банківські послуги,Інші витрати,138648,Центральний офіс,33492420,Україна,Послуги банку,26009000000569,current,2.50,"АТ ""Укрексімбанк""",00032112,юридична особа
ГРОМАДЯНСЬКА ПОЗИЦІЯ,"Київ, вулиця Магнітогорська, 1",76,2016-04-29,26004020050550_24,Послуги зв’язку,Послуги зв’язку,138647,Центральний офіс,33492420,Україна,Оплата послуг,26009000000569,current,2.50,"ТОВ ""Воля-кабель""",30777913,юридична особа
ГРОМАДЯНСЬКА ПОЗИЦІЯ,"Київ, вулиця Антоновича, 127",70,2016-04-29,26004020050550_23,Банківські послуги,Інші витрати,138646,Центральний офіс,33492420,Україна,Послуги банку,26009000000569,current,2.50,"АТ ""Укрексімбанк""",00032112,юридична особа
ГРОМАДЯНСЬКА ПОЗИЦІЯ,"Київ, вулиця Антоновича, 127",70,2016-04-29,26004020050550_22,Банківські послуги,Інші витрати,138645,Центральний офіс,33492420,Україна,Послуги банку,26009000000569,current,2.50,"АТ ""Укрексімбанк""",00032112,юридична особа
ГРОМАДЯНСЬКА ПОЗИЦІЯ,"Київ, вулиця Антоновича, 127",70,2016-04-29,26004020050550_21,Банківські послуги,Інші витрати,138644,Центральний офіс,33492420,Україна,Послуги банку,26009000000569,current,2.50,"АТ ""Укрексімбанк""",00032112,юридична особа
ГРОМАДЯНСЬКА ПОЗИЦІЯ,"Київ, вулиця Антоновича, 127",70,2016-04-29,26004020050550,Банківські послуги,Інші витрати,138643,Центральний офіс,33492420,Україна,Послуги банку,26009000000569,current,2.50,"АТ ""Укрексімбанк""",00032112,юридична особа
ГРОМАДЯНСЬКА ПОЗИЦІЯ,Київ,48,2016-04-29,26004020050550,Публікування матеріалів у мережі Інтернет,Реклама в інтернеті,138642,Центральний офіс,33492420,Україна,Оплата послуг,26009000000569,current,1200.00,"ТОВ ""ГІГАЦЕНТР""",37956851,юридична особа
ГРОМАДЯНСЬКА ПОЗИЦІЯ,Київ,48,2016-04-29,26004020050550,Публікування матеріалів у мережі Інтернет,Реклама в інтернеті,138641,Центральний офіс,33492420,Україна,Оплата послуг,26009000000569,current,800.00,"ТОВ ""ГІГАТРАНС""",34603204,юридична особа
ГРОМАДЯНСЬКА ПОЗИЦІЯ,,84,2016-04-29,1260,"Заробітна плата, премії","Заробітна плата, лікарняні, вагітності, відрядження, компенсації",138549,Центральний офіс,33492420,Україна,ЗП за квітень 2016р.,26009000000569,current,2415.00,Царьов Ігор Анатолійович,,фізична особа
ГРОМАДЯНСЬКА ПОЗИЦІЯ,,84,2016-04-29,1260,"Заробітна плата, премії","Заробітна плата, лікарняні, вагітності, відрядження, компенсації",138548,Центральний офіс,33492420,Україна,ЗП за квітень 2016р.,26009000000569,current,603.75,Комарова Ганна Георгіївна,,фізична особа
ГРОМАДЯНСЬКА ПОЗИЦІЯ,,84,2016-04-29,1260,"Заробітна плата, премії","Заробітна плата, лікарняні, вагітності, відрядження, компенсації",138547,Центральний офіс,33492420,Україна,ЗП за квітень 2016р.,26009000000569,current,727.77,Павлик Зоя Борисівна,,фізична особа
ГРОМАДЯНСЬКА ПОЗИЦІЯ,"Київ, вулиця Миколи Лєскова, 9",70,2016-04-28,Ьп,Банківські послуги,Інші витрати,138822,Львівська обласна організація,37277596,Львівська область,Комісія за користування пакетом,26005314012,current,100.00,"АТ ""Райффайзен банк Аваль""",14305909,юридична особа
ГРОМАДЯНСЬКА ПОЗИЦІЯ,"Київ, вулиця Миколи Лєскова, 9",70,2016-04-28,Ьп,Банківські послуги,Інші витрати,138821,Львівська обласна організація,37277596,Львівська область,Комісія за надання виписки,26005314012,current,50.00,"АТ ""Райффайзен банк Аваль""",14305909,юридична особа
ГРОМАДЯНСЬКА ПОЗИЦІЯ,"Київ, вулиця Михайла Грушевського, 1Д",70,2016-04-21,0421Ь02ИКУ,Банківські послуги,Інші витрати,138809,Волинська обласна організація,37204512,Волинська область,"Комісія за дебетовий платіж N 2 від 2016-04-21 по рахунку, згідно договору банківського рахунку N б/н від 2015-08-03 без ПДВ",2600805509013,current,3.00,"ПАТ КБ ""Приватбанк""",14360570,юридична особа
ГРОМАДЯНСЬКА ПОЗИЦІЯ,,58,2016-04-21,2,"Виготовлення друкованих матеріалів (плакатів, листівок, буклетів та інших агітаційних матеріалів)",Друкована агітація,138803,Волинська обласна організація,37204512,Волинська область,"Друк газети ""Громадянська позиція""",2600805509013,current,1600.00,Глогусь Тетяна Іванівна,,фізична особа
ГРОМАДЯНСЬКА ПОЗИЦІЯ,"Київ, вулиця Михайла Грушевського, 1Д",70,2016-04-16,ЬЛР8300047,Банківські послуги,Інші витрати,138808,Волинська обласна організація,37204512,Волинська область,Погашення заборгованості за розрахунково-касове обслуговування згідно угоди РКО N б/н від 2015-08-03,2600805509013,current,90.98,"ПАТ КБ ""Приватбанк""",14360570,юридична особа
ГРОМАДЯНСЬКА ПОЗИЦІЯ,"Київ, вулиця Михайла Грушевського, 1Д",70,2016-04-05,0405L0676 Y,Банківські послуги,Інші витрати,138901,Дніпропетровська обласна організація,37006888,Дніпропетровська область,Комісія за дебетовий платіж,26005050226940,current,3.00,"ПАТ КБ ""Приватбанк""",14360570,юридична особа
ГРОМАДЯНСЬКА ПОЗИЦІЯ,"Київ, вулиця Антоновича, 127",70,2016-04-05,26004020050550,Банківські послуги,Інші витрати,138640,Центральний офіс,33492420,Україна,Послуги банку,26009000000569,current,30.00,"АТ ""Укрексімбанк""",00032112,юридична особа
ГРОМАДЯНСЬКА ПОЗИЦІЯ,"Київ, вулиця Михайла Грушевського, 1Д",70,2016-04-01,AS63vГv9op,Банківські послуги,Інші витрати,138900,Дніпропетровська обласна організація,37006888,Дніпропетровська область,Комісія за обслуговування рахунку,26005050226940,current,100.00,"ПАТ КБ ""Приватбанк""",14360570,юридична особа
ГРОМАДЯНСЬКА ПОЗИЦІЯ,"Київ, вулиця Антоновича, 127",70,2016-03-31,26004020050550,Банківські послуги,Інші витрати,138639,Центральний офіс,33492420,Україна,Послуги банку,26009000000569,current,18.73,"АТ ""Укрексімбанк""",00032112,юридична особа
ГРОМАДЯНСЬКА ПОЗИЦІЯ,"Київ, вулиця Академіка Туполєва, 28А",63,2016-03-31,26004020050550,Податок на доходи,Податкові платежі,138638,Центральний офіс,33492420,Україна,Податки до держбюджету,26009000000569,current,686.00,УДКСУ у Шевченківському районі м. Києва,37995466,юридична особа
ГРОМАДЯНСЬКА ПОЗИЦІЯ,"Київ, вулиця Академіка Туполєва, 28А",63,2016-03-31,26004020050550,Податок на доходи,Податкові платежі,138637,Центральний офіс,33492420,Україна,Податки до держбюджету,26009000000569,current,68.00,УДКСУ у Шевченківському районі м. Києва,37995466,юридична особа
ГРОМАДЯНСЬКА ПОЗИЦІЯ,Київ,60,2016-03-31,26004020050550,Інші податки,Податкові платежі,138636,Центральний офіс,33492420,Україна,Податки до держбюджету,26009000000569,current,1130.00,ДПІ у Шевченківському районі у м. Києві,38728711,юридична особа
ГРОМАДЯНСЬКА ПОЗИЦІЯ,"Київ, вулиця Магнітогорська, 1",76,2016-03-31,26004020050550,Послуги зв’язку,Послуги зв’язку,138635,Центральний офіс,33492420,Україна,Оплата послуг,26009000000569,current,162.40,"ТОВ ""Воля-кабель""",30777913,юридична особа
ГРОМАДЯНСЬКА ПОЗИЦІЯ,"Київ, вулиця Антоновича, 127",70,2016-03-31,26004020050550,Банківські послуги,Інші витрати,138634,Центральний офіс,33492420,Україна,Послуги банку,26009000000569,current,96.00,"АТ ""Укрексімбанк""",00032112,юридична особа
ГРОМАДЯНСЬКА ПОЗИЦІЯ,"Київ, вулиця Антоновича, 127",70,2016-03-31,26004020050550_20,Банківські послуги,Інші витрати,138633,Центральний офіс,33492420,Україна,Послуги банку,26009000000569,current,2.50,"АТ ""Укрексімбанк""",00032112,юридична особа
ГРОМАДЯНСЬКА ПОЗИЦІЯ,"Київ, вулиця Антоновича, 127",70,2016-03-31,26004020050550_19,Банківські послуги,Інші витрати,138632,Центральний офіс,33492420,Україна,Послуги банку,26009000000569,current,2.50,"АТ ""Укрексімбанк""",00032112,юридична особа
ГРОМАДЯНСЬКА ПОЗИЦІЯ,"Київ, вулиця Антоновича, 127",70,2016-03-31,26004020050550_18,Банківські послуги,Інші витрати,138631,Центральний офіс,33492420,Україна,Послуги банку,26009000000569,current,2.50,"АТ ""Укрексімбанк""",00032112,юридична особа
ГРОМАДЯНСЬКА ПОЗИЦІЯ,"Київ, вулиця Антоновича, 127",70,2016-03-31,26004020050550_17,Банківські послуги,Інші витрати,138630,Центральний офіс,33492420,Україна,Послуги банку,26009000000569,current,2.50,"АТ ""Укрексімбанк""",00032112,юридична особа
ГРОМАДЯНСЬКА ПОЗИЦІЯ,"Київ, вулиця Антоновича, 127",70,2016-03-31,26004020050550_16,Банківські послуги,Інші витрати,138629,Центральний офіс,33492420,Україна,Послуги банку,26009000000569,current,2.50,"АТ ""Укрексімбанк""",00032112,юридична особа
ГРОМАДЯНСЬКА ПОЗИЦІЯ,"Київ, вулиця Антоновича, 127",70,2016-03-31,26004020050550_15,Банківські послуги,Інші витрати,138628,Центральний офіс,33492420,Україна,Послуги банку,26009000000569,current,2.50,"АТ ""Укрексімбанк""",00032112,юридична особа
ГРОМАДЯНСЬКА ПОЗИЦІЯ,"Київ, вулиця Антоновича, 127",70,2016-03-31,26004020050550,Банківські послуги,Інші витрати,138627,Центральний офіс,33492420,Україна,Послуги банку,26009000000569,current,2.50,"АТ ""Укрексімбанк""",00032112,юридична особа
ГРОМАДЯНСЬКА ПОЗИЦІЯ,Київ,48,2016-03-31,26004020050550,Публікування матеріалів у мережі Інтернет,Реклама в інтернеті,138626,Центральний офіс,33492420,Україна,Оплата послуг,26009000000569,current,1200.00,"ТОВ ""ГІГАЦЕНТР""",37956851,юридична особа
ГРОМАДЯНСЬКА ПОЗИЦІЯ,Київ,48,2016-03-31,26004020050550,Публікування матеріалів у мережі Інтернет,Реклама в інтернеті,138625,Центральний офіс,33492420,Україна,Оплата послуг,26009000000569,current,800.00,"ТОВ ""ГІГАТРАНС""",34603204,юридична особа
ГРОМАДЯНСЬКА ПОЗИЦІЯ,,84,2016-03-31,1252,"Заробітна плата, премії","Заробітна плата, лікарняні, вагітності, відрядження, компенсації",138546,Центральний офіс,33492420,Україна,ЗП за березень 2016р.,26009000000569,current,2415.00,Царьов Ігор Анатолійович,,фізична особа
ГРОМАДЯНСЬКА ПОЗИЦІЯ,,84,2016-03-31,1252,"Заробітна плата, премії","Заробітна плата, лікарняні, вагітності, відрядження, компенсації",138545,Центральний офіс,33492420,Україна,ЗП за березень 2016р.,26009000000569,current,603.75,Комарова Ганна Георгіївна,,фізична особа
ГРОМАДЯНСЬКА ПОЗИЦІЯ,,84,2016-03-31,1252,"Заробітна плата, премії","Заробітна плата, лікарняні, вагітності, відрядження, компенсації",138544,Центральний офіс,33492420,Україна,ЗП за березень 2016р.,26009000000569,current,727.77,Павлик Зоя Борисівна,,фізична особа
ГРОМАДЯНСЬКА ПОЗИЦІЯ,"Київ, вулиця Миколи Лєскова, 9",70,2016-03-30,Ьп,Банківські послуги,Інші витрати,138820,Львівська обласна організація,37277596,Львівська область,Комісія за користування пакетом,26005314012,current,100.00,"АТ ""Райффайзен банк Аваль""",14305909,юридична особа
ГРОМАДЯНСЬКА ПОЗИЦІЯ,"Київ, вулиця Миколи Лєскова, 9",70,2016-03-30,Ьп,Банківські послуги,Інші витрати,138819,Львівська обласна організація,37277596,Львівська область,Комісія за користування пакетом,26005314012,current,50.00,"АТ ""Райффайзен банк Аваль""",14305909,юридична особа
ГРОМАДЯНСЬКА ПОЗИЦІЯ,"Чернігівська область, Чернігів, вулиця Мстиславська, 17",79,2016-03-29,26004020050550,"Оренда будинків і приміщень та експлуатаційні витрати (прибирання, страхування орендованих будинків, охорона, сигналізація, ремонт, вивіз сміття, тощо)",Оренда нерухомості,138624,Центральний офіс,33492420,Україна,Оренда приміщення,26009000000569,current,1333.30,Фонд комунального майна Чернігівської міської ради,14227121,юридична особа
ГРОМАДЯНСЬКА ПОЗИЦІЯ,Київ,69,2016-03-29,26004020050550,Організація заходів та інші організаційні послуги,Організація заходів та інші організаційні послуги,138623,Центральний офіс,33492420,Україна,Проведення конференції,26009000000569,current,2340.00,"ТОВ ""ОСТВЕСТТУР""",35646390,юридична особа
ГРОМАДЯНСЬКА ПОЗИЦІЯ,"Київ, вулиця Антоновича, 127",70,2016-03-29,26004020050550_14,Банківські послуги,Інші витрати,138622,Центральний офіс,33492420,Україна,Послуги банку,26009000000569,current,2.50,"АТ ""Укрексімбанк""",00032112,юридична особа
ГРОМАДЯНСЬКА ПОЗИЦІЯ,"Київ, вулиця Антоновича, 127",70,2016-03-29,26004020050550,Банківські послуги,Інші витрати,138621,Центральний офіс,33492420,Україна,Послуги банку,26009000000569,current,2.50,"АТ ""Укрексімбанк""",00032112,юридична особа
ГРОМАДЯНСЬКА ПОЗИЦІЯ,"Чернігівська область, Чернігів, вулиця Мстиславська, 17",79,2016-03-24,26004020050550,"Оренда будинків і приміщень та експлуатаційні витрати (прибирання, страхування орендованих будинків, охорона, сигналізація, ремонт, вивіз сміття, тощо)",Оренда нерухомості,138620,Центральний офіс,33492420,Україна,Оренда приміщення,26009000000569,current,1377.04,Фонд комунального майна Чернігівської міської ради,14227121,юридична особа
ГРОМАДЯНСЬКА ПОЗИЦІЯ,"Київ, вулиця Антоновича, 127",70,2016-03-24,26004020050550,Банківські послуги,Інші витрати,138619,Центральний офіс,33492420,Україна,Послуги банку,26009000000569,current,2.50,"АТ ""Укрексімбанк""",00032112,юридична особа
ГРОМАДЯНСЬКА ПОЗИЦІЯ,"Київ, вулиця Михайла Грушевського, 1Д",70,2016-03-02,0302LTQY,Банківські послуги,Інші витрати,138898,Дніпропетровська обласна організація,37006888,Дніпропетровська область,Комісія за дебетовий платіж,26005050226940,current,3.00,"ПАТ КБ ""Приватбанк""",14360570,юридична особа
ГРОМАДЯНСЬКА ПОЗИЦІЯ,"Київ, вулиця Антоновича, 127",70,2016-03-02,26004020050550,Банківські послуги,Інші витрати,138618,Центральний офіс,33492420,Україна,Послуги банку,26009000000569,current,30.00,"АТ ""Укрексімбанк""",00032112,юридична особа
ГРОМАДЯНСЬКА ПОЗИЦІЯ,"Київ, вулиця Михайла Грушевського, 1Д",70,2016-03-01,AS62t17zop,Банківські послуги,Інші витрати,138897,Дніпропетровська обласна організація,37006888,Дніпропетровська область,Комісія за обслуговування рахунку,26005050226940,current,100.00,"ПАТ КБ ""Приватбанк""",14360570,юридична особа
ГРОМАДЯНСЬКА ПОЗИЦІЯ,"Київ, вулиця Госпітальна, 12Г",70,2016-02-29,40599763,Банківські послуги,Інші витрати,138925,Тернопільська обласна організація,37016189,Тернопільська область,Комісія за розрахункове обслуговування рахунку,26002300597395,current,10.00,"АТ ""Ощадбанк""",00032129,юридична особа
ГРОМАДЯНСЬКА ПОЗИЦІЯ,"Київ, вулиця Антоновича, 127",70,2016-02-29,26004020050550,Банківські послуги,Інші витрати,138617,Центральний офіс,33492420,Україна,Послуги банку,26009000000569,current,96.00,"АТ ""Укрексімбанк""",00032112,юридична особа
ГРОМАДЯНСЬКА ПОЗИЦІЯ,"Київ, вулиця Миколи Лєскова, 9",70,2016-02-26,Ьп,Банківські послуги,Інші витрати,138818,Львівська обласна організація,37277596,Львівська область,Комісія за користування пакетом,26005314012,current,100.00,"АТ ""Райффайзен банк Аваль""",14305909,юридична особа
ГРОМАДЯНСЬКА ПОЗИЦІЯ,"Київ, вулиця Миколи Лєскова, 9",70,2016-02-26,Ьп,Банківські послуги,Інші витрати,138817,Львівська обласна організація,37277596,Львівська область,Комісія за надання виписки,26005314012,current,50.00,"АТ ""Райффайзен банк Аваль""",14305909,юридична особа
ГРОМАДЯНСЬКА ПОЗИЦІЯ,"Київ, вулиця Академіка Туполєва, 28А",63,2016-02-25,26004020050550,Податок на доходи,Податкові платежі,138616,Центральний офіс,33492420,Україна,Податки до держбюджету,26009000000569,current,686.00,УДКСУ у Шевченківському районі м. Києва,37995466,юридична особа
ГРОМАДЯНСЬКА ПОЗИЦІЯ,"Київ, вулиця Академіка Туполєва, 28А",63,2016-02-25,26004020050550,Податок на доходи,Податкові платежі,138615,Центральний офіс,33492420,Україна,Податки до держбюджету,26009000000569,current,68.00,УДКСУ у Шевченківському районі м. Києва,37995466,юридична особа
ГРОМАДЯНСЬКА ПОЗИЦІЯ,Київ,60,2016-02-25,26004020050550,Інші податки,Податкові платежі,138614,Центральний офіс,33492420,Україна,Податки до держбюджету,26009000000569,current,1130.00,ДПІ у Шевченківському районі у м. Києві,38728711,юридична особа
ГРОМАДЯНСЬКА ПОЗИЦІЯ,"Київ, вулиця Магнітогорська, 1",76,2016-02-25,26004020050550,Послуги зв’язку,Послуги зв’язку,138613,Центральний офіс,33492420,Україна,Оплата послуг,26009000000569,current,162.40,"ТОВ ""Воля-кабель""",30777913,юридична особа
ГРОМАДЯНСЬКА ПОЗИЦІЯ,"Київ, вулиця Антоновича, 127",70,2016-02-25,26004020050550_13,Банківські послуги,Інші витрати,138612,Центральний офіс,33492420,Україна,Послуги банку,26009000000569,current,2.50,"АТ ""Укрексімбанк""",00032112,юридична особа
ГРОМАДЯНСЬКА ПОЗИЦІЯ,"Київ, вулиця Антоновича, 127",70,2016-02-25,26004020050550_12,Банківські послуги,Інші витрати,138611,Центральний офіс,33492420,Україна,Послуги банку,26009000000569,current,2.50,"АТ ""Укрексімбанк""",00032112,юридична особа
ГРОМАДЯНСЬКА ПОЗИЦІЯ,"Київ, вулиця Антоновича, 127",70,2016-02-25,26004020050550_11,Банківські послуги,Інші витрати,138610,Центральний офіс,33492420,Україна,Послуги банку,26009000000569,current,2.50,"АТ ""Укрексімбанк""",00032112,юридична особа
ГРОМАДЯНСЬКА ПОЗИЦІЯ,"Київ, вулиця Антоновича, 127",70,2016-02-25,26004020050550_10,Банківські послуги,Інші витрати,138609,Центральний офіс,33492420,Україна,Послуги банку,26009000000569,current,2.50,"АТ ""Укрексімбанк""",00032112,юридична особа
ГРОМАДЯНСЬКА ПОЗИЦІЯ,"Київ, вулиця Антоновича, 127",70,2016-02-25,26004020050550_9,Банківські послуги,Інші витрати,138608,Центральний офіс,33492420,Україна,Послуги банку,26009000000569,current,2.50,"АТ ""Укрексімбанк""",00032112,юридична особа
ГРОМАДЯНСЬКА ПОЗИЦІЯ,"Київ, вулиця Антоновича, 127",70,2016-02-25,26004020050550_8,Банківські послуги,Інші витрати,138607,Центральний офіс,33492420,Україна,Послуги банку,26009000000569,current,2.50,"АТ ""Укрексімбанк""",00032112,юридична особа
ГРОМАДЯНСЬКА ПОЗИЦІЯ,"Київ, вулиця Антоновича, 127",70,2016-02-25,26004020050550,Банківські послуги,Інші витрати,138606,Центральний офіс,33492420,Україна,Послуги банку,26009000000569,current,2.50,"АТ ""Укрексімбанк""",00032112,юридична особа
ГРОМАДЯНСЬКА ПОЗИЦІЯ,Київ,48,2016-02-25,26004020050550,Публікування матеріалів у мережі Інтернет,Реклама в інтернеті,138605,Центральний офіс,33492420,Україна,Оплата послуг,26009000000569,current,1200.00,"ТОВ ""ГІГАЦЕНТР""",37956851,юридична особа
ГРОМАДЯНСЬКА ПОЗИЦІЯ,Київ,48,2016-02-25,26004020050550,Публікування матеріалів у мережі Інтернет,Реклама в інтернеті,138604,Центральний офіс,33492420,Україна,Оплата послуг,26009000000569,current,800.00,"ТОВ ""ГІГАТРАНС""",34603204,юридична особа
ГРОМАДЯНСЬКА ПОЗИЦІЯ,,84,2016-02-25,1241,"Заробітна плата, премії","Заробітна плата, лікарняні, вагітності, відрядження, компенсації",138543,Центральний офіс,33492420,Україна,ЗП за лютий 2016р.,26009000000569,current,2415.00,Царьов Ігор Анатолійович,,фізична особа
ГРОМАДЯНСЬКА ПОЗИЦІЯ,,84,2016-02-25,1241,"Заробітна плата, премії","Заробітна плата, лікарняні, вагітності, відрядження, компенсації",138542,Центральний офіс,33492420,Україна,ЗП за лютий 2016р.,26009000000569,current,603.75,Комарова Ганна Георгіївна,,фізична особа
ГРОМАДЯНСЬКА ПОЗИЦІЯ,,84,2016-02-25,1241,"Заробітна плата, премії","Заробітна плата, лікарняні, вагітності, відрядження, компенсації",138541,Центральний офіс,33492420,Україна,ЗП за лютий 2016р.,26009000000569,current,727.77,Павлик Зоя Борисівна,,фізична особа
ГРОМАДЯНСЬКА ПОЗИЦІЯ,"Київ, вулиця Антоновича, 127",70,2016-02-23,26004020050550,Банківські послуги,Інші витрати,138603,Центральний офіс,33492420,Україна,Послуги банку,26009000000569,current,2.50,"АТ ""Укрексімбанк""",00032112,юридична особа
ГРОМАДЯНСЬКА ПОЗИЦІЯ,,74,2016-02-23,1237,"Придбання канцтоварів, паперу, інших предметів і матеріалів, а також госп товари",Придбання канцтоварів та госп. товарів,138540,Центральний офіс,33492420,Україна,За канцтовари,26009000000569,current,387.00,Королько О Ю,,фізична особа
ГРОМАДЯНСЬКА ПОЗИЦІЯ,"Тернопільська область, Тернопіль",69,2016-02-22,78,Організація заходів та інші організаційні послуги,Організація заходів та інші організаційні послуги,138924,Тернопільська обласна організація,37016189,Тернопільська область,Оренда залу,26002300597395,current,200.00,Тернопільська обласна спілка споживчих товариств,01767413,юридична особа
ГРОМАДЯНСЬКА ПОЗИЦІЯ,"Київ, вулиця Антоновича, 127",70,2016-02-04,26004020050550_7,Банківські послуги,Інші витрати,138602,Центральний офіс,33492420,Україна,Послуги банку,26009000000569,current,2.50,"АТ ""Укрексімбанк""",00032112,юридична особа
ГРОМАДЯНСЬКА ПОЗИЦІЯ,"Київ, вулиця Антоновича, 127",70,2016-02-04,26004020050550,Банківські послуги,Інші витрати,138601,Центральний офіс,33492420,Україна,Послуги банку,26009000000569,current,2.50,"АТ ""Укрексімбанк""",00032112,юридична особа
ГРОМАДЯНСЬКА ПОЗИЦІЯ,Київ,48,2016-02-04,26004020050550,Публікування матеріалів у мережі Інтернет,Реклама в інтернеті,138600,Центральний офіс,33492420,Україна,Оплата послуг,26009000000569,current,1200.00,"ТОВ ""ГІГАЦЕНТР""",37956851,юридична особа
ГРОМАДЯНСЬКА ПОЗИЦІЯ,Київ,48,2016-02-04,26004020050550,Публікування матеріалів у мережі Інтернет,Реклама в інтернеті,138599,Центральний офіс,33492420,Україна,Оплата послуг,26009000000569,current,800.00,"ТОВ ""ГІГАТРАНС""",34603204,юридична особа
ГРОМАДЯНСЬКА ПОЗИЦІЯ,"Київ, вулиця Михайла Грушевського, 1Д",70,2016-02-01,0201L05XQ Y,Банківські послуги,Інші витрати,138895,Дніпропетровська обласна організація,37006888,Дніпропетровська область,Комісія за дебетовий платіж,26005050226940,current,3.00,"ПАТ КБ ""Приватбанк""",14360570,юридична особа
ГРОМАДЯНСЬКА ПОЗИЦІЯ,"Київ, вулиця Михайла Грушевського, 1Д",70,2016-02-01,AS61t2w4yp,Банківські послуги,Інші витрати,138894,Дніпропетровська обласна організація,37006888,Дніпропетровська область,Комісія за обслуговування рахунку,26005050226940,current,100.00,"ПАТ КБ ""Приватбанк""",14360570,юридична особа
ГРОМАДЯНСЬКА ПОЗИЦІЯ,"Київ, вулиця Михайла Грушевського, 1Д",70,2016-02-01,,Банківські послуги,Інші витрати,138870,Івано-Франківська обласна організація,36733960,Івано-Франківська область,Комісія за обслуговування рахунку,26000052516833,current,119.98,"ПАТ КБ ""Приватбанк""",14360570,юридична особа
ГРОМАДЯНСЬКА ПОЗИЦІЯ,"Київ, вулиця Михайла Грушевського, 1Д",70,2016-02-01,Л86И539яр,Банківські послуги,Інші витрати,138807,Волинська обласна організація,37204512,Волинська область,Комісія за обслуговування рахунку січень 2016р. згідно договору банківського рахунку від 2015-08-03,2600805509013,current,9.02,"ПАТ КБ ""Приватбанк""",14360570,юридична особа
ГРОМАДЯНСЬКА ПОЗИЦІЯ,"Київ, вулиця Антоновича, 127",70,2016-02-01,26004020050550,Банківські послуги,Інші витрати,138598,Центральний офіс,33492420,Україна,Послуги банку,26009000000569,current,30.00,"АТ ""Укрексімбанк""",00032112,юридична особа
ГРОМАДЯНСЬКА ПОЗИЦІЯ,"Волинська область, Луцьк, вулиця Гетьмана Мазепи, 8, 56",52,2016-01-29,1,Інша реклама (без класифікації),Реклама (без класифікації),138806,Волинська обласна організація,37204512,Волинська область,За Рекламні послуги,2600805509013,current,500.00,"ТОВ ""Волинське Агентство",39837074,юридична особа
ГРОМАДЯНСЬКА ПОЗИЦІЯ,"Київ, вулиця Академіка Туполєва, 28А",63,2016-01-29,26004020050550,Податок на доходи,Податкові платежі,138597,Центральний офіс,33492420,Україна,Податки до держбюджету,26009000000569,current,686.00,УДКСУ у Шевченківському районі м. Києва,37995466,юридична особа
ГРОМАДЯНСЬКА ПОЗИЦІЯ,"Київ, вулиця Академіка Туполєва, 28А",63,2016-01-29,26004020050550,Податок на доходи,Податкові платежі,138596,Центральний офіс,33492420,Україна,Податки до держбюджету,26009000000569,current,68.00,УДКСУ у Шевченківському районі м. Києва,37995466,юридична особа
ГРОМАДЯНСЬКА ПОЗИЦІЯ,Київ,60,2016-01-29,26004020050550,Інші податки,Податкові платежі,138595,Центральний офіс,33492420,Україна,Податки до держбюджету,26009000000569,current,1130.00,ДПІ у Шевченківському районі у м. Києві,38728711,юридична особа
ГРОМАДЯНСЬКА ПОЗИЦІЯ,"Київ, вулиця Антоновича, 127",70,2016-01-29,26004020050550,Банківські послуги,Інші витрати,138594,Центральний офіс,33492420,Україна,Послуги банку,26009000000569,current,96.00,"АТ ""Укрексімбанк""",00032112,юридична особа
ГРОМАДЯНСЬКА ПОЗИЦІЯ,"Київ, вулиця Антоновича, 127",70,2016-01-29,26004020050550_6,Банківські послуги,Інші витрати,138593,Центральний офіс,33492420,Україна,Послуги банку,26009000000569,current,2.50,"АТ ""Укрексімбанк""",00032112,юридична особа
ГРОМАДЯНСЬКА ПОЗИЦІЯ,"Київ, вулиця Антоновича, 127",70,2016-01-29,26004020050550_5,Банківські послуги,Інші витрати,138592,Центральний офіс,33492420,Україна,Послуги банку,26009000000569,current,2.50,"АТ ""Укрексімбанк""",00032112,юридична особа
ГРОМАДЯНСЬКА ПОЗИЦІЯ,"Київ, вулиця Антоновича, 127",70,2016-01-29,26004020050550_4,Банківські послуги,Інші витрати,138591,Центральний офіс,33492420,Україна,Послуги банку,26009000000569,current,2.50,"АТ ""Укрексімбанк""",00032112,юридична особа
ГРОМАДЯНСЬКА ПОЗИЦІЯ,"Київ, вулиця Антоновича, 127",70,2016-01-29,26004020050550,Банківські послуги,Інші витрати,138590,Центральний офіс,33492420,Україна,Послуги банку,26009000000569,current,2.50,"АТ ""Укрексімбанк""",00032112,юридична особа
ГРОМАДЯНСЬКА ПОЗИЦІЯ,,84,2016-01-29,1232,"Заробітна плата, премії","Заробітна плата, лікарняні, вагітності, відрядження, компенсації",138539,Центральний офіс,33492420,Україна,ЗП за січень 2016р.,26009000000569,current,2415.00,Царьов Ігор Анатолійович,,фізична особа
ГРОМАДЯНСЬКА ПОЗИЦІЯ,,84,2016-01-29,1232,"Заробітна плата, премії","Заробітна плата, лікарняні, вагітності, відрядження, компенсації",138538,Центральний офіс,33492420,Україна,ЗП за січень 2016р.,26009000000569,current,603.75,Комарова Ганна Георгіївна,,фізична особа
ГРОМАДЯНСЬКА ПОЗИЦІЯ,,84,2016-01-29,1232,"Заробітна плата, премії","Заробітна плата, лікарняні, вагітності, відрядження, компенсації",138537,Центральний офіс,33492420,Україна,ЗП за січень 2016р.,26009000000569,current,727.77,Павлик Зоя Борисівна,,фізична особа
ГРОМАДЯНСЬКА ПОЗИЦІЯ,"Київ, вулиця Миколи Лєскова, 9",70,2016-01-28,Ьп,Банківські послуги,Інші витрати,138816,Львівська обласна організація,37277596,Львівська область,Комісія за користування пакетом,26005314012,current,100.00,"АТ ""Райффайзен банк Аваль""",14305909,юридична особа
ГРОМАДЯНСЬКА ПОЗИЦІЯ,"Київ, вулиця Миколи Лєскова, 9",70,2016-01-28,Ьп,Банківські послуги,Інші витрати,138815,Львівська обласна організація,37277596,Львівська область,Комісія за надання виписки,26005314012,current,50.00,"АТ ""Райффайзен банк Аваль""",14305909,юридична особа
ГРОМАДЯНСЬКА ПОЗИЦІЯ,"Чернігівська область, Чернігів, вулиця Мстиславська, 17",79,2016-01-27,26004020050550,"Оренда будинків і приміщень та експлуатаційні витрати (прибирання, страхування орендованих будинків, охорона, сигналізація, ремонт, вивіз сміття, тощо)",Оренда нерухомості,138589,Центральний офіс,33492420,Україна,Оренда приміщення,26009000000569,current,2737.50,Фонд комунального майна Чернігівської міської ради,14227121,юридична особа
ГРОМАДЯНСЬКА ПОЗИЦІЯ,"Київ, вулиця Антоновича, 127",70,2016-01-27,26004020050550,Банківські послуги,Інші витрати,138588,Центральний офіс,33492420,Україна,Послуги банку,26009000000569,current,2.50,"АТ ""Укрексімбанк""",00032112,юридична особа
ГРОМАДЯНСЬКА ПОЗИЦІЯ,"Київ, вулиця Магнітогорська, 1",76,2016-01-19,26004020050550,Послуги зв’язку,Послуги зв’язку,138587,Центральний офіс,33492420,Україна,Оплата послуг,26009000000569,current,162.40,"ТОВ ""Воля-кабель""",30777913,юридична особа
ГРОМАДЯНСЬКА ПОЗИЦІЯ,"Київ, вулиця Антоновича, 127",70,2016-01-19,26004020050550_3,Банківські послуги,Інші витрати,138586,Центральний офіс,33492420,Україна,Послуги банку,26009000000569,current,2.50,"АТ ""Укрексімбанк""",00032112,юридична особа
ГРОМАДЯНСЬКА ПОЗИЦІЯ,"Київ, вулиця Антоновича, 127",70,2016-01-19,26004020050550_2,Банківські послуги,Інші витрати,138585,Центральний офіс,33492420,Україна,Послуги банку,26009000000569,current,2.50,"АТ ""Укрексімбанк""",00032112,юридична особа
ГРОМАДЯНСЬКА ПОЗИЦІЯ,"Київ, вулиця Антоновича, 127",70,2016-01-19,26004020050550_1,Банківські послуги,Інші витрати,138584,Центральний офіс,33492420,Україна,Послуги банку,26009000000569,current,2.50,"АТ ""Укрексімбанк""",00032112,юридична особа
ГРОМАДЯНСЬКА ПОЗИЦІЯ,"Київ, вулиця Антоновича, 127",70,2016-01-19,26004020050550,Банківські послуги,Інші витрати,138583,Центральний офіс,33492420,Україна,Послуги банку,26009000000569,current,2.50,"АТ ""Укрексімбанк""",00032112,юридична особа
ГРОМАДЯНСЬКА ПОЗИЦІЯ,Київ,48,2016-01-19,26004020050550,Публікування матеріалів у мережі Інтернет,Реклама в інтернеті,138582,Центральний офіс,33492420,Україна,Оплата послуг,26009000000569,current,1100.00,"ТОВ ""ГІГАТРАНС""",34603204,юридична особа
ГРОМАДЯНСЬКА ПОЗИЦІЯ,Київ,48,2016-01-19,26004020050550,Публікування матеріалів у мережі Інтернет,Реклама в інтернеті,138581,Центральний офіс,33492420,Україна,Оплата послуг,26009000000569,current,1200.00,"ТОВ ""ГІГАЦЕНТР""",37956851,юридична особа
ГРОМАДЯНСЬКА ПОЗИЦІЯ,,79,2016-01-19,1225,"Оренда будинків і приміщень та експлуатаційні витрати (прибирання, страхування орендованих будинків, охорона, сигналізація, ремонт, вивіз сміття, тощо)",Оренда нерухомості,138536,Центральний офіс,33492420,Україна,Оренда приміщення,26009000000569,current,3543.10,Михайличенко Алла Олексіївна,,фізична особа
ГРОМАДЯНСЬКА ПОЗИЦІЯ,,66,2016-01-16,00116У0БИ 0,Повернення внесків приватних внесків (донорам),Повернення приватних внесків (донорам),138842,Івано-Франківська обласна організація,36733960,Івано-Франківська область,Повернення кредиту,26000052516833,current,750.00,Ладовський Микола Васильович,,фізична особа
ГРОМАДЯНСЬКА ПОЗИЦІЯ,"Київ, вулиця Михайла Грушевського, 1Д",70,2016-01-12,01^07К,Банківські послуги,Інші витрати,138892,Дніпропетровська обласна організація,37006888,Дніпропетровська область,Комісія за дебетовий платіж,26005050226940,current,3.00,"ПАТ КБ ""Приватбанк""",14360570,юридична особа
ГРОМАДЯНСЬКА ПОЗИЦІЯ,"Київ, вулиця Антоновича, 127",70,2016-01-12,26004020050550,Банківські послуги,Інші витрати,138580,Центральний офіс,33492420,Україна,Послуги банку,26009000000569,current,30.00,"АТ ""Укрексімбанк""",00032112,юридична особа
ГРОМАДЯНСЬКА ПОЗИЦІЯ,"Київ, вулиця Михайла Грушевського, 1Д",70,2016-01-05,AS5cv1k6sp,Банківські послуги,Інші витрати,138891,Дніпропетровська обласна організація,37006888,Дніпропетровська область,Комісія за обслуговування рахунку,26005050226940,current,100.00,"ПАТ КБ ""Приватбанк""",14360570,юридична особа
ГРОМАДЯНСЬКА ПОЗИЦІЯ,"Київ, вулиця Михайла Грушевського, 1Д",70,2016-01-05,АБ5су51хор,Банківські послуги,Інші витрати,138869,Івано-Франківська обласна організація,36733960,Івано-Франківська область,Комісія за обслуговування рахунку,26000052516833,current,100.00,"ПАТ КБ ""Приватбанк""",14360570,юридична особа
